Workbook

Sheet Bestandaufnahme
A1: BESTANDSAUFNAHME DER KORRUPTIONSGEFÄHRDETEN TÄTIGKEITEN
A2: Struktur | C2: Arbeit
A3: Bestimmung des Prozesses/der Phase | M3: Risikobewertung (4) | AF3: Vorbeugungsmaßnahmen | CA3: Monitoring Umsetzung | CC3: Monitoring Wirksamkeit
M4: a) Identifizierung des Risikos | O4: b)Risikoanalyse (numerisch quantifizierte Risikostufe) | AD4: c) Risikogewichtung | AF4: Kontrollen (man siehe Kolonne Q "Kontrollen" in Risikoanalyse) | AS4: Verstärkte Verfahren | AY4: Besondere Bewertungen der erreichten Ergebnisse | BE4: Besondere Maßnahmen in der Organisation der Ämter und / oder in der Verwaltung des zugeteilten Personals | BK4: Besondere Transparenzmaßnahmen betreffend bereits durchgeführte Tätigkeiten | BQ4: Andere Art von Gegenmaßnahme
O5: Indikatoren für die Bewertung der Wahrscheinlichkeit | W5: Indikatoren für die Bewertung der Auswirkungen | AF5: ex ante | AL5: ex post
A6: Amt/Bereich | B6: Risikobereich | C6: Beschreibung des "weiteren" Risikobereiches | D6: Entscheidungsprozess (1)(2) | E6: (2a) Für die Bereiche A), C) und D) ist, neben der Beschreibung des Prozesses laut vorhergehender Spalte, auch die „Art des Entscheidungsprozesses“ gemäß "Anlage 2" wiederzugeben | F6: Erfordernisse des Prozesses (INPUT) | G6: Erhofftes Ergebnis (OUTPUT) | H6: Rechtsquelle | I6: Korruptionsgefährdete Phase des Entscheidungsprozesses (2 und 2b) | J6: Wer ist der Verantwortliche des Verfahrens? | K6: Gesamtbetrag der im Jahr 2016 getätigten Ausgaben in € (3) | L6: Gesamtanzahl Verfahren 2016 | M6: Beschreibung des Risikos | N6: Ursache des Risikos | O6: ERMESSENSFREIHEIT Welche Stufe an Ermessensfreiheit weist der Entscheidungsprozess auf? | P6: VERWALTUNGSEXTERNE RELEVANZ Erzeugt der Entscheidungsprozess direkte Wirkungen außerhalb der Landesverwaltung? | Q6: KOMPLEXITÄT DES ENTSCHEIDUNGSPROZESSES Handelt es sich um einen komplexen Entscheidungsprozess, welcher zur Erreichung des Endergebnisses die Beteiligung mehrerer Verwaltungen im Rahmen von aufeinanderfolgenden Phasen vorsieht (eventuelle Kontrollen ausgenommen)? | R6: WIRTSCHAFTLICHE BEDEUTUNG Welche wirtschaftliche Bedeutung hat der Entscheidungsprozess? | S6: TEILBARKEIT DES ENTSCHEIDUNGSPROZESSES Kann das Endergebnis des Entscheidungsprozesses auch durch die Durchführung mehrerer Einzeloperationen erreicht werden, die zwar für sich allein genommen von geringerer wirtschaftlicher Bedeutung sind, aber in ihrer Gesamtheit dasselbe Ergebnis gewährleisten (z.B. eine Mehrzahl beschränkter Auftragserteilungen)? | T6: KONTROLLEN Ist die Art der angewandten Kontrolle – auch auf der Grundlage der bisherigen Erfahrungswerte – dazu geeignet, das Korruptionsrisiko zu neutralisieren? | U6: SUMME | V6: DURCHSCHNITTSWERT DER WAHRSCHEINLICHKEIT | W6: ORGANISATORISCHE AUSWIRKUNGEN Wie hoch ist der Prozentanteil des Personals, das für die Bearbeitung des Entscheidungsprozesses eingesetzt wird, im Verhältnis zum gesamten Personal des zuständigen Amtes? (falls der Entscheidungsprozess die Beteiligung mehrerer Ämter der Landesverwaltung vorsieht, muss der Prozentanteil auf das gesamte Personal der jeweils beteiligten Ämter bezogen werden) | X6: WIRTSCHAFTLICHE AUSWIRKUNGEN Wurden innerhalb der letzten 5 Jahre Bedienstete (Führungskräfte oder Mitarbeiter) des zuständigen Amtes vom Rechnungshof verurteilt oder wurde die Verwaltung wegen gleichartigen oder ähnlichen Vorfällen zum Schadenersatz verurteilt? | Y6: RUFSCHÄDIGENDE AUSWIRKUNGEN Wurden innerhalb der letzten 5 Jahre in Zeitungen oder Zeitschriften Artikel veröffentlicht, die gleichartige oder ähnliche Risiken zum Gegenstand hatten? | Z6: ORGANISATORICHE, WIRTSCHAFTLICHE UND RUFSCHÄDIGENDE AUSWIRKUNGEN Welche Verwaltungsebene (höchste, mittlere oder untere) ist vom Korruptionsrisiko betroffen bzw. bekleidet der zuständige Bedienstete innerhalb der Landesverwaltung eine hohe, mittlere oder niedrige Position? | AA6: SUMME | AB6: DURCHSCHNITTSWERT DER AUSWIRKUNGEN | AC6: GESAMTBEWERTUNG DES RISIKOS | AD6: Risikorangordnung (falls innerhalb Ihrer Abteilung mehrere Entscheidungsprozesse derselben Risikostufe existieren, welchem dieser Prozesse soll bei der Anwendung der Vorbeugungsmaßnahmen der Vorrang eingeräumt werden?) | AE6: VERSCHIEDENE ANMERKUNGEN - KORRUPTIONSGEFÄHRDETE TÄTIGKEITEN | AF6: spezifische Kontrolllen ex ante [präventiv] | AG6: Art | AH6: Maßnahme/n beschreiben | AI6: von Rechtsquelle vorgeschrieben | AJ6: Beschreibung | AK6: wird/werden gemäß Konsolidierter Verwaltungspraxis durchgeführt | AL6: spezifische Kontrolllen ex post (im Nachhinein] | AM6: Art | AN6: Maßnahme/n beschreiben | AO6: von Rechtsquelle vorgeschrieben | AP6: Beschreibung | AQ6: wird/werden gemäß Konsolidierter Verwaltungspraxis durchgeführt | AR6: Werden Ersatzerklärungen gem. Art. 5 L.G. 17/1993 benutzt? | AS6: verstärkte Verfahren (5) | AT6: Art | AU6: Maßnahme/n beschreiben | AV6: von Rechtsquelle vorgeschrieben | AW6: Beschreibung | AX6: wird/werden gemäß Konsolidierter Verwaltungspraxis durchgeführt | AY6: besondere Bewertungen (ex post) der erreichten Ergebnisse | AZ6: Art | BA6: Maßnahme/n beschreiben | BB6: von Rechtsquelle vorgeschrieben | BC6: Beschreibung | BD6: wird/werden gemäß Konsolidierter Verwaltungspraxis durchgeführt | BE6: besondere Maßnahmen in der Organisation der Ämter und / oder in der Verwaltung des zugeteilten Personals | BF6: Art | BG6: Maßnahme/n beschreiben | BH6: von Rechtsquelle vorgeschrieben | BI6: Beschreibung | BJ6: wird/werden gemäß Konsolidierter Verwaltungspraxis durchgeführta | BK6: besondere Transparenzmaßnahmen betreffend bereits durchgeführte Tätigkeiten, sei es im Sinne der Transparenz des Entscheidungsprozesses, sei es im Sinne der Veröffentlichung | BL6: Art | BM6: Maßnahme/n beschreiben | BN6: von Rechtsquelle vorgeschrieben | BO6: Beschreibung | BP6: wird/werden gemäß Konsolidierter Verwaltungspraxis durchgeführt | BQ6: andere Art von Gegenmaßnahme | BR6: Art | BS6: Maßnahme/n beschreiben | BT6: von Rechtsquelle vorgeschrieben | BU6: Beschreibung | BV6: wird/werden gemäß Konsolidierter Verwaltungspraxis durchgeführt | BW6: Vorbeugungsmaßnahme | BX6: Parameter für die Bewertung der Wirksamkeit der Maßnahme | BY6: Für die Umsetzung verantwortliche Struktur | BZ6: Frist für die Umsetzung | CA6: Wurde die Maßnahme umgesetzt? | CB6: Wurde die Frist eingehalten? | CC6: Bewertung
A7: 19.0 Abteilungsdirektion | B7: - B) Vergabe von öffentlichen Arbeiten, Lieferungen und Dienstleistungen (also z.B. sämtliche Formen der Erteilung von Aufträgen) | D7: Vergabe von Dienstleistungen und Lieferungen | F7: Notwendigkeit, bestimmte Dienstleistungen in einer Form zu erbringen, für welche die öffentliche Verwaltung überfordert ist (z.B. Werbung, professionelle Information, Veröffentlichungen) | G7: Erhalt der erarbeiteten Produkte oder Dienstleistungen | H7: Landesgesetz 16/2015; GvD 50/2016 | I7: B) Phasen 1, 3, 4, 5, 8 | J7: - Abteilungsdirektor | K7: 4605.5 | L7: 13 | M7: Vorabinformation geheimes Einverständnis mit dem beauftragten Unternehmen, Begünstigung eines Unternehmens | N7: Die Verwaltung des Verfahrens wird in der Regel werden von nur einer Person durchgeführt. | O7: Das Verfahren ist teilweise von Gesetzen und Verwaltungsakten (Verordnungen, Richtlinien, Rundschreiben) geregelt (2) | P7: Ja, das Ergebnis des Entscheidungsprozesses ist an Subjekte außerhalb der Landesverwaltung gerichtet (5) | Q7: Nein, der Entscheidungsprozess betrifft ausschließlich die Landesverwaltung (1) | R7: Der Entscheidungsprozess bedingt zwar die Gewährung von Vergünstigungen bzw. Vorteilen an externe Subjekte, aber diese Vorteile haben keine besondere wirtschaftliche Relevanz (z.B. Gewährung von Studienbeihilfen an Studenten) (3) | S7: Nein (1) | T7: Ja, die Kontrolle ist in ungefähr 50% der Fälle wirksam (3) | U7: 15 | V7: =ROUND(+U7/6,1) -> 2.5 | W7: Bis ungefähr 20% (1) | X7: Nein (1) | Y7: Wir haben diesbezüglich keine Kenntnis (1) | Z7: Die Position eines Abteilungsdirektors (4) | AA7: 7 | AB7: 1.8 | AC7: =+V7*AB7 -> 4.5 | BW7: Miteinbeziehung von mindestens einer weiteren Person in das Verfahren | BX7: Kontrolle über die Einhaltung | BY7: Abteilungsdirektion | BZ7: sofort | CA7: Ja | CB7: Ja | CC7: wirksam
A8: 19.0.1. Frauenbüro | B8: - B) Vergabe von öffentlichen Arbeiten, Lieferungen und Dienstleistungen (also z.B. sämtliche Formen der Erteilung von Aufträgen) | D8: Vergabe von folgenden Dienstleistungen: Referentinnen-/Referententätigkeit, Redaktion, Rechtsberatung, Technik, Simultanübersetzung, Moderation. | F8: Veröffentlichung des Infoblattes "Eres" Mangel an internem Personal, welches entsprechend qualifiziert wäre, um diesen Dienst zu gewährleisten. Um einen professionellen Rechtsinformationsdienst leisten zu können, sind Anwältinnen notwendig, die sichere und zuverlässige Auskünfte geben können. | G8: Erhalt der erarbeiteten Texte und Übersetzungen innerhalb der definierten Zeiten und der Qualität. Hilfesuchende Frauen bekommen professionelle Rechtsberatung | H8: Landesgesetz 16/2015; GvD 50/2016; Landesgesetz 5/2010 | I8: B) Phasen 1, 2, 4, 5, 8 | J8: - Abteilungsdirektor | K8: 41435.84 | L8: 43 | M8: Vorabinformation geheimes Einverständnis mit dem beauftragten Unternehmen, Begünstigung eines Unternehmens | N8: Ein bestimmtes Subjekt bevorzugen | O8: Das Verfahren ist teilweise von Gesetzen und Verwaltungsakten (Verordnungen, Richtlinien, Rundschreiben) geregelt (2) | P8: Ja, das Ergebnis des Entscheidungsprozesses ist an Subjekte außerhalb der Landesverwaltung gerichtet (5) | Q8: Nein, der Entscheidungsprozess betrifft ausschließlich die Landesverwaltung (1) | R8: Der Entscheidungsprozess bedingt die Gewährung von erheblichen Vergünstigungen bzw. Vorteilen an externe Subjekte (z.B. Erteilung von öffentlichen Aufträgen) (5) | S8: Nein (1) | T8: Ja, die Kontrolle ist in ungefähr 50% der Fälle wirksam (3) | U8: 17 | V8: 2.8 | W8: Bis ungefähr 60% (3) | X8: Nein (1) | Y8: Wir haben diesbezüglich keine Kenntnis (1) | Z8: Die Position eines Abteilungsdirektors (4) | AA8: 9 | AB8: =ROUND(+AA8/4,1) -> 2.3 | AC8: 6.44 | AD8: 1 | AF8: Nein | AL8: Ja | AM8: - Gebarungskontrolle | AN8: Kontrolle der Zahlung durch das Amt für Ausgaben | AR8: Ja | AS8: Nein | AY8: Nein | BE8: Nein | BK8: Ja | BL8: - Weiteres (in der folgenden Spalte beschreiben) | BM8: Veröffentlichung auf der Seite www.ausschreibungen-suedtirol.it | BP8: Ja | BQ8: Nein | BW8: Absprache mit Vorgesetzten, Besuch von Weiterbildungskursen, Pflicht die eventuelle Abweichung von allg. Leitlinien ausdrücklich zu begründen, Transparenzmaßnahmen (Veröffentlichungspflicht) | BX8: Absprache mit Vorgesetzten, Besuch von Weiterbildungskursen, Pflicht die eventuelle Abweichung von allg. Leitlinien ausdrücklich zu begründen, Transparenzmaßnahmen (Veröffentlichungspflicht) | BY8: Abteilung | BZ8: Sofort | CA8: Ja | CB8: Ja | CC8: wirksam
A9: 19.0.1. Frauenbüro | B9: - B) Vergabe von öffentlichen Arbeiten, Lieferungen und Dienstleistungen (also z.B. sämtliche Formen der Erteilung von Aufträgen) | C9: Ein bestimmtes Subjekt bevorzugen | D9: Vergabe von folgenden Lieferungen: Druck, Grafik, Raummiete, Blumenankauf, Zeitungsinserate, Aushang von Plakaten (Bewerbung). | F9: Notwendig, um das Infoblatt Eres zu veröffentlichen und zu gestalten, Tätigkeiten, Veranstaltungen, Vorträge professionell durchführen zu können. | G9: Gelungene Umsetzung aller Tätigkeiten, die zur Verbesserung der Chancengleichheit zwischen Mann und Frau beitragen sollen. | H9: Landesgesetz 16/2015; GvD 50/2016; Landesgesetz 5/2010 | I9: B) Phasen 1, 2, 4, 5, 8 | J9: - Abteilungsdirektor | K9: 38121.68 | L9: 13 | M9: Vorabinformation geheimes Einverständnis mit dem beauftragten Unternehmen, Begünstigung eines Unternehmens | N9: Ein bestimmtes Subjekt bevorzugen | O9: Das Verfahren ist teilweise von Gesetzen und Verwaltungsakten (Verordnungen, Richtlinien, Rundschreiben) geregelt (2) | P9: Ja, das Ergebnis des Entscheidungsprozesses ist an Subjekte außerhalb der Landesverwaltung gerichtet (5) | Q9: Nein, der Entscheidungsprozess betrifft ausschließlich die Landesverwaltung (1) | R9: Der Entscheidungsprozess bedingt die Gewährung von erheblichen Vergünstigungen bzw. Vorteilen an externe Subjekte (z.B. Erteilung von öffentlichen Aufträgen) (5) | S9: Nein (1) | T9: Ja, die Kontrolle ist in ungefähr 50% der Fälle wirksam (3) | U9: 17 | V9: 2.8 | W9: Bis ungefähr 60% (3) | X9: Nein (1) | Y9: Wir haben diesbezüglich keine Kenntnis (1) | Z9: Die Position eines Abteilungsdirektors (4) | AA9: 9 | AB9: =ROUND(+AA9/4,1) -> 2.3 | AC9: 6.44 | AD9: 2 | AF9: Nein | AL9: Ja | AM9: - Gebarungskontrolle | AN9: Kontrolle der Zahlung durch das Amt für Ausgaben | AR9: Ja | AS9: Nein | AY9: Nein | BE9: Nein | BK9: Ja | BL9: - Weiteres (in der folgenden Spalte beschreiben) | BM9: Veröffentlichung auf der Seite www.ausschreibungen-suedtirol.it | BP9: Ja | BQ9: Nein | BW9: Absprache mit Vorgesetzten, Besuch von Weiterbildungskursen, Pflicht die eventuelle Abweichung von allg. Leitlinien ausdrücklich zu begründen, Transparenzmaßnahmen (Veröffentlichungspflicht) | BX9: Absprache mit Vorgesetzten, Besuch von Weiterbildungskursen, Pflicht die eventuelle Abweichung von allg. Leitlinien ausdrücklich zu begründen, Transparenzmaßnahmen (Veröffentlichungspflicht) | BY9: Abteilung | BZ9: sofort | CA9: Ja | CB9: Ja | CC9: wirksam
A10: 19.0.1. Frauenbüro | B10: - D) Gewährung und Auszahlung von Subventionen, Beiträgen, Zuschüssen, Prämien und wirtschaftlichen Vergünstigungen jeglicher Art | D10: Beiträge zur Förderung von Frauenprojekten | E10: D) 6 | F10: Antrag um Förderung | G10: Gewährung der Förderung | H10: Landesgesetz 5/2010; Beschluss der Landesregierung Nr. 4876/2002 (Richtlinien); Beschluss der Landesregierung Nr. 947/2013 | I10: D) Phase 1 | J10: - Abteilungsdirektor | K10: 60000 | L10: 11 | M10: Missbräuchliche Bewertung der Zulässigkeit des Antrages zum Zweck der unrechtmäßigen Gewährung eines Beitrages. | N10: Ein bestimmtes Subjekt bevorzugen; Ermessensfreiheit in der Bewertung des Projektes | O10: Das Verfahren ist teilweise von Gesetzen und Verwaltungsakten (Verordnungen, Richtlinien, Rundschreiben) geregelt (2) | P10: Ja, das Ergebnis des Entscheidungsprozesses ist an Subjekte außerhalb der Landesverwaltung gerichtet (5) | Q10: Nein, der Entscheidungsprozess betrifft ausschließlich die Landesverwaltung (1) | R10: 8 | S10: Nein (1) | T10: Ja, die Kontrolle ist in ungefähr 50% der Fälle wirksam (3) | U10: 15 | V10: 2.5 | W10: Bis ungefähr 60% (3) | X10: Nein (1) | Y10: Wir haben diesbezüglich keine Kenntnis (1) | Z10: Die Position eines Abteilungsdirektors (4) | AA10: 9 | AB10: =ROUND(+AA10/4,1) -> 2.3 | AC10: 5.75 | AF10: Nein | AL10: Ja | AM10: - Stichprobenkontrolle | AN10: Bei den Stichprobenkontrollen kontrolliert das Amt für Ausgaben die Unterlagen zu den Projekten, die einen Beitrag erhalten haben. | AR10: Ja | AS10: Nein | AY10: Nein | BE10: Nein | BK10: Ja | BL10: - Bürgernetz? | BM10: Veröffentlichung im Bürgernetz (unter "Institutionelle Veröffentlichungen") | BP10: Ja | BQ10: Nein | BW10: Absprache mit Vorgesetzten, Entscheidung in einer Fachkommission, Liquidierung erst nach Vorlage der effektiven Ausgabenbelege, Durchführung der vom Gesetz vorgesehenen Stichprobenkontrollen, Kontrollen durch das Amt für Ausgaben. | BX10: Kontrolle und Bewertung von Seiten der Vorgesetzten und einer Fachkommission, Überprüfung der Begründungen | BY10: Abteilung | BZ10: sofort | CA10: Ja | CB10: Ja | CC10: wirksam
A11: 19.0.1. Frauenbüro | B11: - D) Gewährung und Auszahlung von Subventionen, Beiträgen, Zuschüssen, Prämien und wirtschaftlichen Vergünstigungen jeglicher Art | D11: Förderpreise für wissenschaftliche Arbeiten | E11: D) 5 | F11: Antrag auf Förderpreis | G11: Gewährung Förderpreis | H11: Landesgesetz 5/2010; Beschluss der Landesregierung Nr. 1250/2012 (Richtlinien) | I11: D) Phasen 1, 2 | J11: - Zuständiger Bediensteter | K11: 7500 | L11: 3 | M11: Missbräuchliche Bewertung der Zulässigkeit des Antrages zum Zweck der unrechtmäßigen Gewährung eines Förderpreises. Zuweisung einer unverhältnismäßigen Bewertung um einer Bewerberin/einem Bewerber einen Vorteil zu verschaffen (in der Regel ist ein Mitglied des Frauenbüros Mitglied in der Bewertungskommission für die Föderpreise und die restlichen Mitglieder sind Mitglieder des Landesbeirates für Chancengleichheit). | N11: Ein bestimmtes Subjekt bevorzugen; Ermessensfreiheit in der Bewertung der wissenschaftlichen Arbeit | O11: Das Verfahren ist teilweise von Gesetzen und Verwaltungsakten (Verordnungen, Richtlinien, Rundschreiben) geregelt (2) | P11: Ja, das Ergebnis des Entscheidungsprozesses ist an Subjekte außerhalb der Landesverwaltung gerichtet (5) | Q11: Nein, der Entscheidungsprozess betrifft ausschließlich die Landesverwaltung (1) | R11: Der Entscheidungsprozess bedingt zwar die Gewährung von Vergünstigungen bzw. Vorteilen an externe Subjekte, aber diese Vorteile haben keine besondere wirtschaftliche Relevanz (z.B. Gewährung von Studienbeihilfen an Studenten) (3) | S11: Nein (1) | T11: Nein, es ist keine Kontrolle vorgesehen (5) | U11: 17 | V11: 2.8 | W11: Bis ungefähr 60% (3) | X11: Nein (1) | Y11: Nein (0) | Z11: Die Position eines einfachen Mitarbeiters (1) | AA11: 5 | AB11: =ROUND(+AA11/4,1) -> 1.3 | AC11: 3.64 | AD11: 3 | AF11: Nein | AL11: Nein | AR11: Ja | AS11: Nein | AY11: Nein | BE11: Nein | BK11: Nein | BQ11: Nein | BW11: Entscheidung in einer Fachkommission, Absprache mit Vorgesetzten, Transparenzmaßnahmen (Veröffentlichungspflicht) | BX11: Kontrolle und Bewertung von Seiten der Vorgesetzten und einer Fachkommission; Überprüfung der Begründungen | BY11: Abteilung | BZ11: sofort | CA11: Ja | CB11: Ja | CC11: wirksam
A12: 19.0.1. Frauenbüro | B12: - Weiteres (angeben ob weitere riskante Tätigkeiten außer der oben genannten bestehen) | C12: Landtagsanfragen | F12: Erfüllung einer institutionellen Aufgabe bzw. Anfrage | G12: Klärung einer Fragestellung | J12: - Abteilungsdirektor | L12: 3 | M12: In der Beantwortung der Landtagsanfrage werden falsche/unwahre Angaben eingefügt um einen bestimmten Sachverhalt zu verschleiern bzw. jemanden einen Vorteil zu verschaffen. | N12: Falsche /Unwahre Angaben einfügen, um einer Person einen Vor oder Nachteil zu verschaffen | O12: Das Verfahren ist teilweise und nur von Verwaltungsakten (Verordnungen, Richtlinien, Rundschreiben) geregelt (4) | P12: Ja, das Ergebnis des Entscheidungsprozesses ist an Subjekte außerhalb der Landesverwaltung gerichtet (5) | Q12: Nein, der Entscheidungsprozess betrifft ausschließlich die Landesverwaltung (1) | R12: 10 | S12: Nein (1) | T12: Nein, es ist keine Kontrolle vorgesehen (5) | U12: 17 | V12: 2.8 | W12: Bis ungefähr 60% (3) | X12: Nein (1) | Y12: Wir haben diesbezüglich keine Kenntnis (1) | Z12: Die Position eines Abteilungsdirektors (4) | AA12: 9 | AB12: =ROUND(+AA12/4,1) -> 2.3 | AC12: 6.44 | AD12: 3 | AF12: Nein | AL12: Ja | AM12: - Weiteres (in der folgenden Spalte beschreiben) | AN12: Kontrolle der Antwort durch die Person, die die Landtagsanfrage gestellt hat. | AR12: Nein | AS12: Nein | AY12: Nein | BE12: Nein | BK12: Ja | BL12: - Weiteres (in der folgenden Spalte beschreiben) | BM12: Veröffentlichung auf der Seite www.landtag-bz.org | BP12: Ja | BQ12: Nein | BW12: Absprache mit Vorgesetzten | BX12: Kontrolle von Seiten der Vorgesetzten | BY12: Abteilung | BZ12: sofort | CA12: Ja | CB12: Ja | CC12: wirksam
A13: 19.1 Amt für Arbeitsmarktbeobachtung | B13: - B) Vergabe von öffentlichen Arbeiten, Lieferungen und Dienstleistungen (also z.B. sämtliche Formen der Erteilung von Aufträgen) | D13: Vergabe oder Beauftragung für die Übersetzung der Zeitschrift "Arbeittsmarkt news" | F13: Monatliche Veröffentlichung des zweisprachigen Mitteilungsblattes - Mangel an internem Personal, welches entsprechend qualifiziert wäre um diesen Dienst zu gewährleisten - das Amt für Sprachangelegenheiten hat mitgeteilt, dass sie den Dienst nicht termingerecht zusichern können | G13: Erhalt des übersetzten Textes innerhalb der definierten Zeiten und der Qualität | H13: Landesgesetz 14/86 Landesgesetz 16/2015; GvD 50/2016 | I13: B) Phasen 3,5,8 | J13: - Abteilungsdirektor | K13: 2100.35 | L13: 2 | M13: Phase 3: Vorabinformation und Bestimmung von Kriterien, die nur ein einziges Subjekt erfüllen kann Phase 5: Fehlerhafte Beurteilung der eingereichten Referenzen Phase 8: geheimes Einverständnis mit dem beauftragten Unternehmen um dieses zu bevorzugen | N13: Ein bestimmtes Subjekt bevorzugen | O13: Das Verfahren ist teilweise von Gesetzen und Verwaltungsakten (Verordnungen, Richtlinien, Rundschreiben) geregelt (2) | P13: Ja, das Ergebnis des Entscheidungsprozesses ist an Subjekte außerhalb der Landesverwaltung gerichtet (5) | Q13: Nein, der Entscheidungsprozess betrifft ausschließlich die Landesverwaltung (1) | R13: 8 | S13: Nein (1) | T13: Nein, es ist keine Kontrolle vorgesehen (5) | U13: 17 | V13: =ROUND(+U13/6,1) -> 2.8 | W13: Bis ungefähr 20% (1) | X13: Nein (1) | Y13: Wir haben diesbezüglich keine Kenntnis (1) | Z13: Die Position eines Koordinators (2) | AA13: 5 | AB13: =ROUND(+AA13/4,1) -> 1.3 | AC13: =+V13*AB13 -> 3.64 | AD13: 1 | AF13: Ja | AG13: - Weiteres (in der folgenden Spalte beschreiben) | AH13: Die Angebote werden von mehreren Mitarbeitern geprüft und beurteilt bzw. im Team besprochen | AI13: - von der selben Rechtsquelle, die den Entscheidungsprozess regelt | AK13: Ja | AL13: Nein | AM13: - Weiteres (in der folgenden Spalte beschreiben) | AN13: Die Leistung wird abwechselnd von mehreren Mitarbeitern geprüft und beurteilt bzw. im Team besprochen | AO13: - von der selben Rechtsquelle, die den Entscheidungsprozess regelt | AQ13: Ja | AR13: Ja | AS13: Nein | AY13: Nein | BE13: Nein | BK13: Nein | BQ13: Nein | BW13: Abwicklung der einzelnen Phasen, welche einem Risiko ausgesetzt sind, nicht mehr durch die beauftragte Einzelperson, sondern durch eine ad hoc eingerichtete Gruppe in Anwesenheit mit dem Verfahrensverantwortlichen | BX13: nicht bestimmbar | BY13: 19.1. Amt für Arbeitsmarktbeobachtung | BZ13: 6 Monate (30.04.2017) | CA13: Ja | CB13: Nein | CC13: neutral
A14: 19.1 Amt für Arbeitsmarktbeobachtung | B14: - I) Kontrollen, Überprüfungen, Inspektionen und Sanktionen | D14: Weiterleitung von verspäteten Arbeitsverhältnissen an das Arbeitsinspektorat | F14: Erhalt einer verspäteten Meldung | G14: Weiterleitung durchgeführt | H14: Art. 9-bis G.D. 1-10-1996 Nr. 510 umgewandelt in Gesetz 28.11.1996, Nr. 608 Art. 4-bis Leg.D. 21.4.2000, Nr. 181 Art. 21 G.. 29.4.1949, Nr. 264 | I14: Identifikation der weiterzuleitenden Meldung | J14: - Zuständiger Bediensteter | K14: 0 | L14: 3833 | M14: Nicht-Weiterleitung der verspäteten Meldung an das Arbeitsinspektorat | N14: Ein bestimmtes Subjekt bevorzugen, sodass keine Verwaltungsstrafe bezhalt wird | O14: Das Verfahren ist teilweise von Gesetzen und Verwaltungsakten (Verordnungen, Richtlinien, Rundschreiben) geregelt (2) | P14: Ja, das Ergebnis des Entscheidungsprozesses ist an Subjekte außerhalb der Landesverwaltung gerichtet (5) | Q14: Nein, der Entscheidungsprozess betrifft ausschließlich die Landesverwaltung (1) | R14: 8 | S14: Nein (1) | T14: Nein, es ist keine Kontrolle vorgesehen (5) | U14: 17 | V14: 2.8 | W14: Bis ungefähr 20% (1) | X14: Nein (1) | Y14: Wir haben diesbezüglich keine Kenntnis (1) | Z14: Die Position eines Koordinators (2) | AA14: 5 | AB14: 1.3 | AC14: 3.64 | AD14: 2 | AF14: Ja | AG14: - Weiteres (in der folgenden Spalte beschreiben) | AH14: Die Identifikation und Weiterleitung funktioniert über eine Software | AI14: - von der selben Rechtsquelle, die den Entscheidungsprozess regelt | AK14: Ja | AL14: Nein | AM14: - Weiteres (in der folgenden Spalte beschreiben) | AN14: Durch die Weiterleitung verliert das Amt die Zuständigkeit | AO14: - von der selben Rechtsquelle, die den Entscheidungsprozess regelt | AQ14: Ja | AR14: Ja | AS14: Nein | AY14: Nein | BE14: Nein | BK14: Nein | BQ14: Nein | BW14: Einführung einer Kontrolle von 1% der Meldungen, welche nicht weitergeleitet wurden, Konrolle durch das Arbeitsinspektorat | BX14: Anzahl der Beanstandungen | BY14: 19.2 Arbeitsinspektorat | BZ14: 1 Jahr (31.10.2017) | CA14: Ja | CB14: Ja | CC14: wirksam
A15: 19.1 Amt für Arbeitsmarktbeobachtung | B15: - D) Gewährung und Auszahlung von Subventionen, Beiträgen, Zuschüssen, Prämien und wirtschaftlichen Vergünstigungen jeglicher Art | D15: Gewährung von Beiträgen an Arbeitnehmerorganisationen | E15: D) 2 | F15: Eingereichtes Ansuchen | G15: Gewährungs-/Ablehnungsakt des Beitrages | H15: Landesgesetz 39/1992 | I15: D) 1 | J15: - Abteilungsdirektor | K15: 99964.63 | L15: 6 | M15: Fehlerhafte Bewertung der objektiven und subjektiven Voraussetzungen | N15: Ein bestimmtes Subjekt bevorzugen | O15: Keine, es ist vollständig geregelt (1) | P15: Ja, das Ergebnis des Entscheidungsprozesses ist an Subjekte außerhalb der Landesverwaltung gerichtet (5) | Q15: Nein, der Entscheidungsprozess betrifft ausschließlich die Landesverwaltung (1) | R15: Der Entscheidungsprozess bedingt zwar die Gewährung von Vergünstigungen bzw. Vorteilen an externe Subjekte, aber diese Vorteile haben keine besondere wirtschaftliche Relevanz (z.B. Gewährung von Studienbeihilfen an Studenten) (3) | S15: Nein (1) | T15: Ja, die Kontrolle ist sehr wirksam (2) | U15: 13 | V15: 2.2 | W15: Bis ungefähr 20% (1) | X15: Nein (1) | Y15: Wir haben diesbezüglich keine Kenntnis (1) | Z15: Die Position eines einfachen Mitarbeiters (1) | AA15: 4 | AB15: 1 | AC15: 2.2 | AD15: 2 | BW15: Weiterführung der aktuell durchgeführten Kontrollen durch das Amt für Ausgaben | BX15: Anzahl der Beanstandungen | BY15: 5.4 Amt für Ausgaben | BZ15: 3 Jahre (31.10.2019)
A16: 19.1 Amt für Arbeitsmarktbeobachtung | B16: - D) Gewährung und Auszahlung von Subventionen, Beiträgen, Zuschüssen, Prämien und wirtschaftlichen Vergünstigungen jeglicher Art | D16: Auszahlung von Beiträgen an Arbeitnehmerorganisationen | E16: D) 2 | F16: Eingereichtes Ansuchen | G16: Auszahlungssakt des Beitrages | H16: Landesgesetz 39/1992 Beschluss der Landesregierung 1449/2011 | I16: D) 1 | J16: - Amtsdirektor | K16: 325630.09 | L16: 19 | M16: Fehlerhafte Bewertung der objektiven Voraussetzungen | N16: Ein bestimmtes Subjekt bevorzugen | O16: Keine, es ist vollständig geregelt (1) | P16: Ja, das Ergebnis des Entscheidungsprozesses ist an Subjekte außerhalb der Landesverwaltung gerichtet (5) | Q16: Nein, der Entscheidungsprozess betrifft ausschließlich die Landesverwaltung (1) | R16: 7 | S16: Nein (1) | T16: Ja, die Kontrolle ist sehr wirksam (2) | U16: 13 | V16: 2.2 | W16: Bis ungefähr 20% (1) | X16: Nein (1) | Y16: Wir haben diesbezüglich keine Kenntnis (1) | Z16: Die Position eines einfachen Mitarbeiters (1) | AA16: 4 | AB16: 1 | AC16: 2.2 | AD16: 2 | BW16: Durchführung der vom Gesetz vorgesehenen Stichproben durch Personal, das nicht die Akte bearbeitet hat | BX16: Anzahl der Beanstandungen | BY16: 19.1. Amt für Arbeitsmarktbeobachtung | BZ16: 3 Jahre (31.10.2019)
A17: 19.1 Amt für Arbeitsmarktbeobachtung | B17: - D) Gewährung und Auszahlung von Subventionen, Beiträgen, Zuschüssen, Prämien und wirtschaftlichen Vergünstigungen jeglicher Art | D17: Gewährung von Beiträgen an Vereine der Auslandssüdtiroler | E17: D) 2 | F17: Eingereichtes Ansuchen | G17: Gewährungs-/Ablehnungsakt des Beitrages | H17: Landesgesetz 13/2001 | I17: D) 1 | J17: - Abteilungsdirektor | K17: 252991.8 | L17: 24 | M17: Fehlerhafte Bewertung der objektiven und subjektiven Voraussetzungen | N17: Ein bestimmtes Subjekt bevorzugen | O17: Keine, es ist vollständig geregelt (1) | P17: Ja, das Ergebnis des Entscheidungsprozesses ist an Subjekte außerhalb der Landesverwaltung gerichtet (5) | Q17: Nein, der Entscheidungsprozess betrifft ausschließlich die Landesverwaltung (1) | R17: Der Entscheidungsprozess bedingt zwar die Gewährung von Vergünstigungen bzw. Vorteilen an externe Subjekte, aber diese Vorteile haben keine besondere wirtschaftliche Relevanz (z.B. Gewährung von Studienbeihilfen an Studenten) (3) | S17: Nein (1) | T17: Ja, die Kontrolle ist sehr wirksam (2) | U17: 13 | V17: 2.2 | W17: Bis ungefähr 20% (1) | X17: Nein (1) | Y17: Wir haben diesbezüglich keine Kenntnis (1) | Z17: Die Position eines einfachen Mitarbeiters (1) | AA17: 4 | AB17: 1 | AC17: 2.2 | AD17: 1 | BW17: Weiterführung der aktuell durchgeführten Kontrollen durch das Amt für Ausgaben | BX17: Anzahl der Beanstandungen | BY17: 5.4 Amt für Ausgaben | BZ17: 3 Jahre (31.10.2019)
A18: 19.1 Amt für Arbeitsmarktbeobachtung | B18: - D) Gewährung und Auszahlung von Subventionen, Beiträgen, Zuschüssen, Prämien und wirtschaftlichen Vergünstigungen jeglicher Art | D18: Auszahlung von Beiträgen an Vereine der Auslandssüdtiroler | E18: D) 2 | F18: Eingereichtes Ansuchen | G18: Auszahlungssakt des Beitrages | H18: Landesgesetz 13/2001 Beschluss der Landesregierung 1213/2015 | I18: D) 1 | J18: - Amtsdirektor | K18: 247170.48 | L18: 49 | M18: Fehlerhafte Bewertung der objektiven Voraussetzungen | N18: Ein bestimmtes Subjekt bevorzugen | O18: Keine, es ist vollständig geregelt (1) | P18: Ja, das Ergebnis des Entscheidungsprozesses ist an Subjekte außerhalb der Landesverwaltung gerichtet (5) | Q18: Nein, der Entscheidungsprozess betrifft ausschließlich die Landesverwaltung (1) | R18: 7 | S18: Nein (1) | T18: Ja, die Kontrolle ist sehr wirksam (2) | U18: 13 | V18: 2.2 | W18: Bis ungefähr 20% (1) | X18: Nein (1) | Y18: Wir haben diesbezüglich keine Kenntnis (1) | Z18: Die Position eines einfachen Mitarbeiters (1) | AA18: 4 | AB18: 1 | AC18: 2.2 | AD18: 1 | BW18: Durchführung der vom Gesetz vorgesehenen Stichproben durch Personal, das nicht die Akte bearbeitet hat | BX18: Anzahl der Beanstandungen | BY18: 19.1. Amt für Arbeitsmarktbeobachtung | BZ18: 3 Jahre (31.10.2019)
A19: 19.2 Arbeitsinspektorat | B19: - C) Ermächtigungen oder Konzessionen | D19: Vorzeitiger Mutterschutz wegen Komplikationen | E19: C) 3 | F19: Eingereichtes Ansuchen | G19: Gewährungs-/Ablehnungsakt der Ermächtigung | H19: gvD 151/2008 | I19: gesamtes Verfahren | J19: - Zuständiger Bediensteter | K19: 0 | L19: 350 | M19: geheimes Einverständnis mit dem betroffenen Unternehmen oder der betroffenen Mutter | N19: Die Verwaltung des Verfahrens wird in der Regel werden von nur einer Person durchgeführt. | O19: Keine, es ist vollständig geregelt (1) | P19: Ja, das Ergebnis des Entscheidungsprozesses ist an Subjekte außerhalb der Landesverwaltung gerichtet (5) | Q19: Ja, der Entscheidungsprozess sieht die Beteiligung von mehr als 3 Verwaltungen vor (3) | R19: Der Entscheidungsprozess bedingt zwar die Gewährung von Vergünstigungen bzw. Vorteilen an externe Subjekte, aber diese Vorteile haben keine besondere wirtschaftliche Relevanz (z.B. Gewährung von Studienbeihilfen an Studenten) (3) | S19: Nein (1) | T19: Nein, es ist keine Kontrolle vorgesehen (5) | U19: 18 | V19: =ROUND(+U19/6,1) -> 3 | W19: Bis ungefähr 20% (1) | X19: Nein (1) | Y19: Nein (0) | Z19: Die Position eines einfachen Mitarbeiters (1) | AA19: 3 | AB19: =ROUND(+AA19/4,1) -> 0.8 | AC19: =+V19*AB19 -> 2.4 | AD19: 3 | AE19: Ab September 2017 Kompetenz Sanitätseinheit | AF19: Nein | AL19: Nein | AR19: Nein | AS19: Nein | AY19: Nein | BE19: Nein | BK19: Nein | BQ19: Nein | BW19: Miteinbeziehung von mindestens einer weiteren Person in das Verfahren | BX19: Kontrolle von Seiten des Vorgesetzten | BY19: Amtsdirektor | BZ19: sofort | CA19: Ja | CB19: Ja | CC19: wirksam
A20: 19.2 Arbeitsinspektorat | B20: - C) Ermächtigungen oder Konzessionen | D20: Vorzeitiger Mutterschutz wegen ungeeigneter Arbeitsbedingungen | E20: C) 6 | F20: Eingereichtes Ansuchen | G20: Gewährungs-/Ablehnungsakt der Ermächtigung | H20: gvD 151/2008 | I20: gesamtes Verfahren | J20: - Zuständiger Bediensteter | K20: 0 | L20: 300 | M20: geheimes Einverständnis mit dem betroffenen Unternehmen oder der betroffenen Mutter | N20: Die Verwaltung des Verfahrens wird in der Regel werden von nur einer Person durchgeführt. | O20: Das Verfahren ist teilweise von Gesetzen und Verwaltungsakten (Verordnungen, Richtlinien, Rundschreiben) geregelt (2) | P20: Ja, das Ergebnis des Entscheidungsprozesses ist an Subjekte außerhalb der Landesverwaltung gerichtet (5) | Q20: Nein, der Entscheidungsprozess betrifft ausschließlich die Landesverwaltung (1) | R20: Der Entscheidungsprozess bedingt zwar die Gewährung von Vergünstigungen bzw. Vorteilen an externe Subjekte, aber diese Vorteile haben keine besondere wirtschaftliche Relevanz (z.B. Gewährung von Studienbeihilfen an Studenten) (3) | S20: Nein (1) | T20: Nein, es ist keine Kontrolle vorgesehen (5) | U20: 17 | V20: =ROUND(+U20/6,1) -> 2.8 | W20: Bis ungefähr 20% (1) | X20: Nein (1) | Y20: Nein (0) | Z20: Die Position eines einfachen Mitarbeiters (1) | AA20: 3 | AB20: =ROUND(+AA20/4,1) -> 0.8 | AC20: =+V20*AB20 -> 2.24 | AD20: 6 | AF20: Nein | AL20: Nein | AR20: Nein | AS20: Nein | AY20: Nein | BE20: Nein | BK20: Nein | BQ20: Nein | BW20: Miteinbeziehung von mindestens einer weiteren Person in das Verfahren | BX20: Kontrolle von Seiten des Vorgesetzten | BY20: Amtsdirektor | BZ20: sofort | CA20: Ja | CB20: Ja | CC20: wirksam
A21: 19.2 Arbeitsinspektorat | B21: - C) Ermächtigungen oder Konzessionen | D21: Konvalidierung Kündigung Mütter und Väter | E21: C) 1 | F21: Eingereichtes Ansuchen | G21: Gewährungs-/Ablehnungsakt der Konvalidierung | H21: gvD 151/2008 | I21: gesamtes Verfahren | J21: - Zuständiger Bediensteter | K21: 0 | L21: 630 | M21: geheimes Einverständnis mit dem betroffenen Unternehmen oder der betroffenen Person | N21: Die Verwaltung des Verfahrens wird in der Regel werden von nur einer Person durchgeführt. | O21: Das Verfahren ist teilweise von Gesetzen und Verwaltungsakten (Verordnungen, Richtlinien, Rundschreiben) geregelt (2) | P21: Ja, das Ergebnis des Entscheidungsprozesses ist an Subjekte außerhalb der Landesverwaltung gerichtet (5) | Q21: Nein, der Entscheidungsprozess betrifft ausschließlich die Landesverwaltung (1) | R21: Der Entscheidungsprozess bedingt zwar die Gewährung von Vergünstigungen bzw. Vorteilen an externe Subjekte, aber diese Vorteile haben keine besondere wirtschaftliche Relevanz (z.B. Gewährung von Studienbeihilfen an Studenten) (3) | S21: Nein (1) | T21: Nein, es ist keine Kontrolle vorgesehen (5) | U21: 17 | V21: 2.8 | W21: Bis ungefähr 20% (1) | X21: Nein (1) | Y21: Nein (0) | Z21: Die Position eines einfachen Mitarbeiters (1) | AA21: 3 | AB21: 0.8 | AC21: 2.24 | AD21: 7 | AF21: Nein | AL21: Nein | AR21: Nein | AS21: Nein | AY21: Nein | BE21: Nein | BK21: Nein | BQ21: Nein | BW21: Miteinbeziehung von mindestens einer weiteren Person in das Verfahren | BX21: Kontrolle von Seiten des Vorgesetzten | BY21: Amtsdirektor | BZ21: sofort | CA21: Ja | CB21: Ja | CC21: wirksam
A22: 19.2 Arbeitsinspektorat | B22: - C) Ermächtigungen oder Konzessionen | D22: Konvalidierung Kündigung wegen Heirat | E22: C) 1 | F22: Eingereichtes Ansuchen | G22: Gewährungs-/Ablehnungsakt der Konvalidierung | H22: gvD 198/2006 | I22: gesamtes Verfahren | J22: - Zuständiger Bediensteter | K22: 0 | L22: 3 | M22: geheimes Einverständnis mit dem betroffenen Unternehmen oder der betroffenen Frau | N22: Die Verwaltung des Verfahrens wird in der Regel werden von nur einer Person durchgeführt. | O22: Das Verfahren ist teilweise von Gesetzen und Verwaltungsakten (Verordnungen, Richtlinien, Rundschreiben) geregelt (2) | P22: Ja, das Ergebnis des Entscheidungsprozesses ist an Subjekte außerhalb der Landesverwaltung gerichtet (5) | Q22: Nein, der Entscheidungsprozess betrifft ausschließlich die Landesverwaltung (1) | R22: Der Entscheidungsprozess bedingt zwar die Gewährung von Vergünstigungen bzw. Vorteilen an externe Subjekte, aber diese Vorteile haben keine besondere wirtschaftliche Relevanz (z.B. Gewährung von Studienbeihilfen an Studenten) (3) | S22: Nein (1) | T22: Nein, es ist keine Kontrolle vorgesehen (5) | U22: 17 | V22: 2.8 | W22: Bis ungefähr 20% (1) | X22: Nein (1) | Y22: Nein (0) | Z22: Die Position eines einfachen Mitarbeiters (1) | AA22: 3 | AB22: 0.8 | AC22: 2.24 | AD22: 9 | AF22: Nein | AL22: Nein | AR22: Nein | AS22: Nein | AY22: Nein | BE22: Nein | BK22: Nein | BQ22: Nein | BW22: Miteinbeziehung von mindestens einer weiteren Person in das Verfahren | BX22: Kontrolle von Seiten des Vorgesetzten | BY22: Amtsdirektor | BZ22: sofort | CA22: Ja | CB22: Ja | CC22: wirksam
A23: 19.2 Arbeitsinspektorat | B23: - C) Ermächtigungen oder Konzessionen | D23: Einsatz von Minderjährigen in Schauspiel, Sport und Werbung | E23: C) 6 | F23: Eingereichtes Ansuchen | G23: Gewährungs-/Ablehnungsakt der Ermächtigung | H23: Gesetz 977/1967 | I23: gesamtes Verfahren | J23: - Zuständiger Bediensteter | K23: 0 | L23: 45 | M23: geheimes Einverständnis mit dem betroffenen Unternehmen | N23: Die Verwaltung des Verfahrens wird in der Regel werden von nur einer Person durchgeführt. | O23: Das Verfahren ist teilweise von Gesetzen und Verwaltungsakten (Verordnungen, Richtlinien, Rundschreiben) geregelt (2) | P23: Ja, das Ergebnis des Entscheidungsprozesses ist an Subjekte außerhalb der Landesverwaltung gerichtet (5) | Q23: Nein, der Entscheidungsprozess betrifft ausschließlich die Landesverwaltung (1) | R23: Der Entscheidungsprozess bedingt zwar die Gewährung von Vergünstigungen bzw. Vorteilen an externe Subjekte, aber diese Vorteile haben keine besondere wirtschaftliche Relevanz (z.B. Gewährung von Studienbeihilfen an Studenten) (3) | S23: Nein (1) | T23: Nein, es ist keine Kontrolle vorgesehen (5) | U23: 17 | V23: 2.8 | W23: Bis ungefähr 20% (1) | X23: Nein (1) | Y23: Nein (0) | Z23: Die Position eines einfachen Mitarbeiters (1) | AA23: 3 | AB23: 0.8 | AC23: 2.24 | AD23: 2 | AF23: Nein | AL23: Nein | AR23: Nein | AS23: Nein | AY23: Nein | BE23: Nein | BK23: Nein | BQ23: Nein | BW23: Miteinbeziehung von mindestens einer weiteren Person in das Verfahren | BX23: Kontrolle von Seiten des Vorgesetzten | BY23: Amtsdirektor | BZ23: sofort | CA23: Ja | CB23: Ja | CC23: wirksam
A24: 19.2 Arbeitsinspektorat | B24: - C) Ermächtigungen oder Konzessionen | D24: Einsatz von Minderjährigen in gefährlichen Tätigkeiten | E24: C) 6 | F24: Eingereichtes Ansuchen | G24: Gewährungs-/Ablehnungsakt der Ermächtigung | H24: Gesetz 977/1967 | I24: gesamtes Verfahren | J24: - Zuständiger Bediensteter | K24: 0 | L24: 234 | M24: geheimes Einverständnis mit dem betroffenen Unternehmen | N24: Die Verwaltung des Verfahrens wird in der Regel werden von nur einer Person durchgeführt. | O24: Das Verfahren ist teilweise von Gesetzen und Verwaltungsakten (Verordnungen, Richtlinien, Rundschreiben) geregelt (2) | P24: Ja, das Ergebnis des Entscheidungsprozesses ist an Subjekte außerhalb der Landesverwaltung gerichtet (5) | Q24: Nein, der Entscheidungsprozess betrifft ausschließlich die Landesverwaltung (1) | R24: Der Entscheidungsprozess bedingt zwar die Gewährung von Vergünstigungen bzw. Vorteilen an externe Subjekte, aber diese Vorteile haben keine besondere wirtschaftliche Relevanz (z.B. Gewährung von Studienbeihilfen an Studenten) (3) | S24: Nein (1) | T24: Nein, es ist keine Kontrolle vorgesehen (5) | U24: 17 | V24: 2.8 | W24: Bis ungefähr 20% (1) | X24: Nein (1) | Y24: Nein (0) | Z24: Die Position eines einfachen Mitarbeiters (1) | AA24: 3 | AB24: 0.8 | AC24: 2.24 | AD24: 4 | AF24: Nein | AL24: Nein | AR24: Nein | AS24: Nein | AY24: Nein | BE24: Nein | BK24: Nein | BQ24: Nein | BW24: Miteinbeziehung von mindestens einer weiteren Person in das Verfahren | BX24: Kontrolle von Seiten des Vorgesetzten | BY24: Amtsdirektor | BZ24: sofort | CA24: Ja | CB24: Ja | CC24: wirksam
A25: 19.2 Arbeitsinspektorat | B25: - C) Ermächtigungen oder Konzessionen | D25: Ermächtigung zur Ausarbeitung von Löhnen | E25: C) 1 | F25: Eingereichtes Ansuchen | G25: Gewährungs-/Ablehnungsakt der Ermächtigung | H25: Gesetz 12/1979 | I25: gesamtes Verfahren | J25: - Zuständiger Bediensteter | K25: 0 | L25: 2 | M25: geheimes Einverständnis mit der betroffenen Person | N25: Die Verwaltung des Verfahrens wird in der Regel werden von nur einer Person durchgeführt. | O25: Das Verfahren ist teilweise von Gesetzen und Verwaltungsakten (Verordnungen, Richtlinien, Rundschreiben) geregelt (2) | P25: Ja, das Ergebnis des Entscheidungsprozesses ist an Subjekte außerhalb der Landesverwaltung gerichtet (5) | Q25: Nein, der Entscheidungsprozess betrifft ausschließlich die Landesverwaltung (1) | R25: Der Entscheidungsprozess bedingt zwar die Gewährung von Vergünstigungen bzw. Vorteilen an externe Subjekte, aber diese Vorteile haben keine besondere wirtschaftliche Relevanz (z.B. Gewährung von Studienbeihilfen an Studenten) (3) | S25: Nein (1) | T25: Nein, es ist keine Kontrolle vorgesehen (5) | U25: 17 | V25: 2.8 | W25: Bis ungefähr 20% (1) | X25: Nein (1) | Y25: Nein (0) | Z25: Die Position eines einfachen Mitarbeiters (1) | AA25: 3 | AB25: 0.8 | AC25: 2.24 | AD25: 5 | AF25: Nein | AL25: Nein | AR25: Nein | AS25: Nein | AY25: Nein | BE25: Nein | BK25: Nein | BQ25: Nein | BW25: Miteinbeziehung von mindestens einer weiteren Person in das Verfahren | BX25: Kontrolle von Seiten des Vorgesetzten | BY25: Amtsdirektor | BZ25: sofort | CA25: Ja | CB25: Ja | CC25: wirksam
A26: 19.2 Arbeitsinspektorat | B26: - C) Ermächtigungen oder Konzessionen | D26: Prüfungsbestätigung für Arbeitsrechtsberater | E26: C) 3 | F26: Eingereichtes Ansuchen | G26: Gewährungs-/Ablehnungsakt der Ermächtigung | H26: Gesetz 12/1979 | I26: gesamtes Verfahren | J26: - Zuständiger Bediensteter | K26: 0 | L26: 4 | M26: geheimes Einverständnis mit der betroffenen Person | N26: Die Verwaltung des Verfahrens wird in der Regel werden von nur einer Person durchgeführt. | O26: Keine, es ist vollständig geregelt (1) | P26: Ja, das Ergebnis des Entscheidungsprozesses ist an Subjekte außerhalb der Landesverwaltung gerichtet (5) | Q26: Nein, der Entscheidungsprozess betrifft ausschließlich die Landesverwaltung (1) | R26: Der Entscheidungsprozess bedingt zwar die Gewährung von Vergünstigungen bzw. Vorteilen an externe Subjekte, aber diese Vorteile haben keine besondere wirtschaftliche Relevanz (z.B. Gewährung von Studienbeihilfen an Studenten) (3) | S26: Nein (1) | T26: Nein, es ist keine Kontrolle vorgesehen (5) | U26: 16 | V26: 2.7 | W26: Bis ungefähr 20% (1) | X26: Nein (1) | Y26: Nein (0) | Z26: Die Position eines einfachen Mitarbeiters (1) | AA26: 3 | AB26: 0.8 | AC26: =+V26*AB26 -> 2.16 | AD26: 6 | AF26: Nein | AL26: Nein | AR26: Nein | AS26: Nein | AY26: Nein | BE26: Nein | BK26: Nein | BQ26: Nein | BW26: Miteinbeziehung von mindestens einer weiteren Person in das Verfahren | BX26: Kontrolle von Seiten des Vorgesetzten | BY26: Amtsdirektor | BZ26: sofort | CA26: Ja | CB26: Ja | CC26: wirksam
A27: 19.2 Arbeitsinspektorat | B27: - C) Ermächtigungen oder Konzessionen | D27: Eintragung in das Landesverzeichnis der Sicherheitsfachkräfte | E27: C) 1 | F27: Eingereichtes Ansuchen | G27: Gewährungs-/Ablehnungsakt der Zulassung | H27: L.G. 41/1981 | I27: gesamtes Verfahren | J27: - Zuständiger Bediensteter | K27: 0 | L27: 18 | M27: geheimes Einverständnis mit der betroffenen Person | N27: Die Verwaltung des Verfahrens wird in der Regel werden von nur einer Person durchgeführt. | O27: Das Verfahren ist teilweise von Gesetzen und Verwaltungsakten (Verordnungen, Richtlinien, Rundschreiben) geregelt (2) | P27: Ja, das Ergebnis des Entscheidungsprozesses ist an Subjekte außerhalb der Landesverwaltung gerichtet (5) | Q27: Ja, der Entscheidungsprozess sieht die Beteiligung von mehr als 3 Verwaltungen vor (3) | R27: Der Entscheidungsprozess bedingt zwar die Gewährung von Vergünstigungen bzw. Vorteilen an externe Subjekte, aber diese Vorteile haben keine besondere wirtschaftliche Relevanz (z.B. Gewährung von Studienbeihilfen an Studenten) (3) | S27: Nein (1) | T27: Nein, es ist keine Kontrolle vorgesehen (5) | U27: 19 | V27: 3.2 | W27: Bis ungefähr 20% (1) | X27: Nein (1) | Y27: Nein (0) | Z27: Die Position eines einfachen Mitarbeiters (1) | AA27: 3 | AB27: 0.8 | AC27: =+V27*AB27 -> 2.56 | AE27: Abgeschafft | AF27: Nein | AL27: Nein | AR27: Nein | AS27: Nein | AY27: Nein | BE27: Nein | BK27: Nein | BQ27: Nein | BW27: Miteinbeziehung von mindestens einer weiteren Person in das Verfahren | BX27: Kontrolle von Seiten des Vorgesetzten | BY27: Amtsdirektor | BZ27: sofort | CA27: Ja | CB27: Ja | CC27: wirksam
A28: 19.2 Arbeitsinspektorat | B28: - C) Ermächtigungen oder Konzessionen | D28: Zulassung als Prüfer von Arbeitsmitteln und Anlagen | E28: C) 5 | F28: Eingereichtes Ansuchen | G28: Gewährungs-/Ablehnungsakt der Zulassung | H28: D.L.H. 7/2012 | I28: gesamtes Verfahren | J28: - Zuständiger Bediensteter | K28: 0 | L28: 29 | M28: geheimes Einverständnis mit der betroffenen Person | N28: Die Verwaltung des Verfahrens wird in der Regel werden von nur einer Person durchgeführt. | O28: Keine, es ist vollständig geregelt (1) | P28: Ja, das Ergebnis des Entscheidungsprozesses ist an Subjekte außerhalb der Landesverwaltung gerichtet (5) | Q28: Nein, der Entscheidungsprozess betrifft ausschließlich die Landesverwaltung (1) | R28: Der Entscheidungsprozess bedingt die Gewährung von erheblichen Vergünstigungen bzw. Vorteilen an externe Subjekte (z.B. Erteilung von öffentlichen Aufträgen) (5) | S28: Nein (1) | T28: Nein, es ist keine Kontrolle vorgesehen (5) | U28: 18 | V28: 3 | W28: Bis ungefähr 20% (1) | X28: Nein (1) | Y28: Nein (0) | Z28: Die Position eines einfachen Mitarbeiters (1) | AA28: 3 | AB28: 0.8 | AC28: =+V28*AB28 -> 2.4 | AD28: 4 | AF28: Nein | AL28: Nein | AR28: Nein | AS28: Nein | AY28: Nein | BE28: Nein | BK28: Nein | BQ28: Nein | BW28: Miteinbeziehung von mindestens einer weiteren Person in das Verfahren | BX28: Kontrolle von Seiten des Vorgesetzten | BY28: Amtsdirektor | BZ28: sofort | CA28: Ja | CB28: Ja | CC28: wirksam
A29: 19.2 Arbeitsinspektorat | B29: - C) Ermächtigungen oder Konzessionen | D29: Ermächtigung zur Sonntagsarbeit | E29: D) 5 | F29: Eingereichtes Ansuchen | G29: Gewährungs-/Ablehnungsakt der Ermächtigung | H29: M.D. 22.06.1935 | I29: gesamtes Verfahren | J29: - Zuständiger Bediensteter | K29: 0 | L29: 0 | M29: geheimes Einverständnis mit dem betroffenen Unternehmen | N29: Die Verwaltung des Verfahrens wird in der Regel werden von nur einer Person durchgeführt. | O29: Das Verfahren ist teilweise von Gesetzen und Verwaltungsakten (Verordnungen, Richtlinien, Rundschreiben) geregelt (2) | P29: Ja, das Ergebnis des Entscheidungsprozesses ist an Subjekte außerhalb der Landesverwaltung gerichtet (5) | Q29: Nein, der Entscheidungsprozess betrifft ausschließlich die Landesverwaltung (1) | R29: Der Entscheidungsprozess bedingt zwar die Gewährung von Vergünstigungen bzw. Vorteilen an externe Subjekte, aber diese Vorteile haben keine besondere wirtschaftliche Relevanz (z.B. Gewährung von Studienbeihilfen an Studenten) (3) | S29: Nein (1) | T29: Nein, es ist keine Kontrolle vorgesehen (5) | U29: 17 | V29: 2.8 | W29: Bis ungefähr 20% (1) | X29: Nein (1) | Y29: Nein (0) | Z29: Die Position eines einfachen Mitarbeiters (1) | AA29: 3 | AB29: 0.8 | AC29: =+V29*AB29 -> 2.24 | AD29: 10 | AF29: Nein | AL29: Nein | AR29: Nein | AS29: Nein | AY29: Nein | BE29: Nein | BK29: Nein | BQ29: Nein | BW29: Miteinbeziehung von mindestens einer weiteren Person in das Verfahren | BX29: Kontrolle von Seiten des Vorgesetzten | BY29: Amtsdirektor | BZ29: sofort | CA29: Ja | CB29: Ja | CC29: wirksam
A30: 19.2 Arbeitsinspektorat | B30: - C) Ermächtigungen oder Konzessionen | D30: Fahrerbescheinigung für Ausländer | E30: C) 5 | F30: Eingereichtes Ansuchen | G30: Gewährungs-/Ablehnungsakt der Bescheinigung | H30: EG-VO 484/2002 | I30: gesamtes Verfahren | J30: - Zuständiger Bediensteter | K30: 0 | L30: 20 | M30: geheimes Einverständnis mit dem betroffenen Unternehmen | N30: Die Verwaltung des Verfahrens wird in der Regel werden von nur einer Person durchgeführt. | O30: Keine, es ist vollständig geregelt (1) | P30: Ja, das Ergebnis des Entscheidungsprozesses ist an Subjekte außerhalb der Landesverwaltung gerichtet (5) | Q30: Nein, der Entscheidungsprozess betrifft ausschließlich die Landesverwaltung (1) | R30: Der Entscheidungsprozess bedingt zwar die Gewährung von Vergünstigungen bzw. Vorteilen an externe Subjekte, aber diese Vorteile haben keine besondere wirtschaftliche Relevanz (z.B. Gewährung von Studienbeihilfen an Studenten) (3) | S30: Nein (1) | T30: Nein, es ist keine Kontrolle vorgesehen (5) | U30: 16 | V30: 2.7 | W30: Bis ungefähr 20% (1) | X30: Nein (1) | Y30: Nein (0) | Z30: Die Position eines einfachen Mitarbeiters (1) | AA30: 3 | AB30: 0.8 | AC30: 2.16 | AD30: 5 | AF30: Nein | AL30: Nein | AR30: Nein | AS30: Nein | AY30: Nein | BE30: Nein | BK30: Nein | BQ30: Nein | BW30: Miteinbeziehung von mindestens einer weiteren Person in das Verfahren | BX30: Kontrolle von Seiten des Vorgesetzten | BY30: Amtsdirektor | BZ30: sofort | CA30: Ja | CB30: Ja | CC30: wirksam
A31: 19.2 Arbeitsinspektorat | B31: - C) Ermächtigungen oder Konzessionen | D31: Ermächtigung unterirdische Arbeitsräume | E31: C) 6 | F31: Eingereichtes Ansuchen | G31: Gewährungs-/Ablehnungsakt der Ermächtigung | H31: gvD 81/2008 | I31: gesamtes Verfahren | J31: - Zuständiger Bediensteter | K31: 0 | L31: 5 | M31: geheimes Einverständnis mit dem betroffenen Unternehmen | N31: Die Verwaltung des Verfahrens wird in der Regel werden von nur einer Person durchgeführt. | O31: Das Verfahren ist teilweise und nur von Gesetzen geregelt (3) | P31: Ja, das Ergebnis des Entscheidungsprozesses ist an Subjekte außerhalb der Landesverwaltung gerichtet (5) | Q31: Nein, der Entscheidungsprozess betrifft ausschließlich die Landesverwaltung (1) | R31: Der Entscheidungsprozess bedingt zwar die Gewährung von Vergünstigungen bzw. Vorteilen an externe Subjekte, aber diese Vorteile haben keine besondere wirtschaftliche Relevanz (z.B. Gewährung von Studienbeihilfen an Studenten) (3) | S31: Nein (1) | T31: Nein, es ist keine Kontrolle vorgesehen (5) | U31: 18 | V31: 3 | W31: Bis ungefähr 20% (1) | X31: Nein (1) | Y31: Nein (0) | Z31: Die Position eines einfachen Mitarbeiters (1) | AA31: 3 | AB31: 0.8 | AC31: 2.4 | AD31: 2 | AF31: Nein | AL31: Nein | AR31: Nein | AS31: Nein | AY31: Nein | BE31: Nein | BK31: Nein | BQ31: Nein | BW31: Miteinbeziehung von mindestens einer weiteren Person in das Verfahren | BX31: Kontrolle von Seiten des Vorgesetzten | BY31: Amtsdirektor | BZ31: sofort | CA31: Ja | CB31: Ja | CC31: wirksam
A32: 19.2 Arbeitsinspektorat | B32: - Weiteres (angeben ob weitere riskante Tätigkeiten außer der oben genannten bestehen) | C32: Prüfung Berufsbefähigung | D32: Staatsprüfung Arbeitsrechtsberater | E32: C) 5 | F32: Eingereichtes Teilnahmegesuch | G32: Ausstellung oder Verweigerung des Befähigungsattestates | H32: Gesetz 12/1979 | I32: gesamtes Verfahren | J32: - Amtsdirektor | K32: 0 | L32: 19 | M32: geheimes Einverständnis mit der betroffenen Person | N32: Die Verwaltung des Verfahrens wird in der Regel werden von nur einer Person durchgeführt. | O32: Das Verfahren ist teilweise und nur von Gesetzen geregelt (3) | P32: Ja, das Ergebnis des Entscheidungsprozesses ist an Subjekte außerhalb der Landesverwaltung gerichtet (5) | Q32: Ja, der Entscheidungsprozess sieht die Beteiligung von mehr als 5 Verwaltungen vor (5) | R32: Der Entscheidungsprozess bedingt die Gewährung von erheblichen Vergünstigungen bzw. Vorteilen an externe Subjekte (z.B. Erteilung von öffentlichen Aufträgen) (5) | S32: Nein (1) | T32: Ja, die Kontrolle ist sehr wirksam (2) | U32: 21 | V32: 3.5 | W32: Bis ungefähr 20% (1) | X32: Nein (1) | Y32: Nein (0) | Z32: Die Position eines Amtsdirektors oder eine gleichgestellte gehobene Position (3) | AA32: 5 | AB32: 1.3 | AC32: 4.55 | AF32: Ja | AG32: - Kontrolle gemäß Art. 5, Abs.2, LG 17/1993 | AH32: Info bei Berufskammer | AI32: - von anderer Rechtsquelle (in der folgenden Spalte beschreiben) | AJ32: LG 17/1993 | AK32: Ja | AL32: Ja | AM32: - Gebarungskontrolle | AN32: Kontrolle Prüfungsprotokoll | AO32: - von der selben Rechtsquelle, die den Entscheidungsprozess regelt | AP32: Gesetz 12/1979 | AQ32: Ja | AR32: Ja | AS32: Nein | AY32: Nein | BE32: Nein | BK32: Nein | BQ32: Nein | BW32: Miteinbeziehung von mindestens einer weiteren Person in das Verfahren | BX32: Kontrolle von Seiten des Vorgesetzten | BY32: Amtsdirektor | BZ32: sofort | CA32: Ja | CB32: Ja | CC32: wirksam
A33: 19.2 Arbeitsinspektorat | B33: - Weiteres (angeben ob weitere riskante Tätigkeiten außer der oben genannten bestehen) | C33: Prüfung Berufsbefähigung | D33: Prüfung Aufzugswartungsfachleute | E33: C) 5 | F33: Eingereichtes Teilnahmegesuch | G33: Ausstellung oder Verweigerung des Befähigungsattestates | H33: D.P.R. 1767/1951 | I33: gesamtes Verfahren | J33: - Amtsdirektor | K33: 0 | L33: 33 | M33: geheimes Einverständnis mit der betroffenen Person | N33: Die Verwaltung des Verfahrens wird in der Regel werden von nur einer Person durchgeführt. | O33: Das Verfahren ist teilweise und nur von Gesetzen geregelt (3) | P33: Ja, das Ergebnis des Entscheidungsprozesses ist an Subjekte außerhalb der Landesverwaltung gerichtet (5) | Q33: Ja, der Entscheidungsprozess sieht die Beteiligung von mehr als 3 Verwaltungen vor (3) | R33: Der Entscheidungsprozess bedingt die Gewährung von erheblichen Vergünstigungen bzw. Vorteilen an externe Subjekte (z.B. Erteilung von öffentlichen Aufträgen) (5) | S33: Nein (1) | T33: Ja, die Kontrolle ist sehr wirksam (2) | U33: 19 | V33: 3.2 | W33: Bis ungefähr 20% (1) | X33: Nein (1) | Y33: Nein (0) | Z33: Die Position eines Amtsdirektors oder eine gleichgestellte gehobene Position (3) | AA33: 5 | AB33: 1.3 | AC33: 4.16 | AD33: 2 | AF33: Ja | AG33: - Kontrolle gemäß Art. 5, Abs.2, LG 17/1993 | AH33: Info bei Kursorganisator | AI33: - von anderer Rechtsquelle (in der folgenden Spalte beschreiben) | AJ33: LG 17/1993 | AK33: Ja | AL33: Ja | AM33: - Gebarungskontrolle | AN33: Kontrolle Prüfungsprotokoll | AO33: - von der selben Rechtsquelle, die den Entscheidungsprozess regelt | AP33: DPR 1767/1951 | AQ33: Ja | AR33: Ja | AS33: Nein | AY33: Nein | BE33: Nein | BK33: Nein | BQ33: Nein | BW33: Miteinbeziehung von mindestens einer weiteren Person in das Verfahren | BX33: Kontrolle von Seiten des Vorgesetzten | BY33: Amtsdirektor | BZ33: sofort | CA33: Ja | CB33: Ja | CC33: wirksam
A34: 19.2 Arbeitsinspektorat | B34: - Weiteres (angeben ob weitere riskante Tätigkeiten außer der oben genannten bestehen) | C34: Prüfung Berufsbefähigung | D34: Prüfung Dampfkesselwärter | E34: C) 5 | F34: Eingereichtes Teilnahmegesuch | G34: Ausstellung oder Verweigerung des Befähigungsattestates | H34: M.D. 01.03.1974 | I34: gesamtes Verfahren | J34: - Amtsdirektor | K34: 0 | L34: 12 | M34: geheimes Einverständnis mit der betroffenen Person | N34: Die Verwaltung des Verfahrens wird in der Regel werden von nur einer Person durchgeführt. | O34: Das Verfahren ist teilweise und nur von Gesetzen geregelt (3) | P34: Ja, das Ergebnis des Entscheidungsprozesses ist an Subjekte außerhalb der Landesverwaltung gerichtet (5) | Q34: Ja, der Entscheidungsprozess sieht die Beteiligung von mehr als 3 Verwaltungen vor (3) | R34: Der Entscheidungsprozess bedingt die Gewährung von erheblichen Vergünstigungen bzw. Vorteilen an externe Subjekte (z.B. Erteilung von öffentlichen Aufträgen) (5) | S34: Nein (1) | T34: Ja, die Kontrolle ist sehr wirksam (2) | U34: 19 | V34: 3.2 | W34: Bis ungefähr 20% (1) | X34: Nein (1) | Y34: Nein (0) | Z34: Die Position eines Amtsdirektors oder eine gleichgestellte gehobene Position (3) | AA34: 5 | AB34: 1.3 | AC34: 4.16 | AD34: 1 | AF34: Ja | AG34: - Kontrolle gemäß Art. 5, Abs.2, LG 17/1993 | AH34: Kontrolle Ausbildungsbüchlein | AI34: - von anderer Rechtsquelle (in der folgenden Spalte beschreiben) | AJ34: LG 17/1993 | AK34: Ja | AL34: Ja | AM34: - Gebarungskontrolle | AN34: Kontrolle Prüfungsprotokoll | AO34: - von der selben Rechtsquelle, die den Entscheidungsprozess regelt | AP34: MD 01.03.1974 | AQ34: Ja | AR34: Ja | AS34: Nein | AY34: Nein | BE34: Nein | BK34: Nein | BQ34: Nein | BW34: Miteinbeziehung von mindestens einer weiteren Person in das Verfahren | BX34: Kontrolle von Seiten des Vorgesetzten | BY34: Amtsdirektor | BZ34: sofort | CA34: Ja | CB34: Ja | CC34: wirksam
A35: 19.2 Arbeitsinspektorat | B35: - Weiteres (angeben ob weitere riskante Tätigkeiten außer der oben genannten bestehen) | C35: Integritätsprüfung Druckanlagen | D35: Integritätsprüfung Druckanlagen | E35: C) 5 | F35: Eingereichtes Ansuchen um Überprüfung | G35: Ausstellung des positiven oder negativen Prüfberichtes | H35: gvD 81/2008 | I35: gesamtes Verfahren | J35: - Zuständiger Bediensteter | K35: 0 | L35: 50 | M35: geheimes Einverständnis mit dem betroffenen Unternehmen | N35: Die Verwaltung des Verfahrens wird in der Regel werden von nur einer Person durchgeführt. | O35: Das Verfahren ist teilweise und nur von Gesetzen geregelt (3) | P35: Ja, das Ergebnis des Entscheidungsprozesses ist an Subjekte außerhalb der Landesverwaltung gerichtet (5) | Q35: Nein, der Entscheidungsprozess betrifft ausschließlich die Landesverwaltung (1) | R35: Der Entscheidungsprozess bedingt zwar die Gewährung von Vergünstigungen bzw. Vorteilen an externe Subjekte, aber diese Vorteile haben keine besondere wirtschaftliche Relevanz (z.B. Gewährung von Studienbeihilfen an Studenten) (3) | S35: Nein (1) | T35: Nein, es ist keine Kontrolle vorgesehen (5) | U35: 18 | V35: 3 | W35: Bis ungefähr 20% (1) | X35: Nein (1) | Y35: Nein (0) | Z35: Die Position eines einfachen Mitarbeiters (1) | AA35: 3 | AB35: 0.8 | AC35: 2.4 | AD35: 1 | AF35: Nein | AL35: Nein | AR35: Nein | AS35: Nein | AY35: Nein | BE35: Nein | BK35: Nein | BQ35: Nein | BW35: Miteinbeziehung von mindestens einer weiteren Person in das Verfahren | BX35: Kontrolle von Seiten des Vorgesetzten | BY35: Amtsdirektor | BZ35: sofort | CA35: Ja | CB35: Ja | CC35: wirksam
A36: 19.2 Arbeitsinspektorat | B36: - Weiteres (angeben ob weitere riskante Tätigkeiten außer der oben genannten bestehen) | C36: Anzeigenverwaltung | D36: Aufnahme Anzeigen | E36: I) | F36: Erhalt/Aufnahme einer Anzeige | G36: Weiterleitung an Inspektionsabteilung, Schlichtungsabteilung oder anderes zuständiges Amt (NISF/INPS, INAIL bzw. territorial zuständiges Arbeitsinspektorat usw.) durchgeführt | H36: gvD 124/2004 gvD 81/2008 | I36: gesamtes Verfahren | J36: - Zuständiger Bediensteter | K36: 0 | L36: 1000 | M36: geheimes Einverständnis mit dem betroffenen Unternehmen | N36: Die Verwaltung des Verfahrens wird in der Regel werden von nur einer Person durchgeführt. | O36: Das Verfahren ist teilweise von Gesetzen und Verwaltungsakten (Verordnungen, Richtlinien, Rundschreiben) geregelt (2) | P36: Ja, das Ergebnis des Entscheidungsprozesses ist an Subjekte außerhalb der Landesverwaltung gerichtet (5) | Q36: Nein, der Entscheidungsprozess betrifft ausschließlich die Landesverwaltung (1) | R36: Der Entscheidungsprozess bedingt die Gewährung von erheblichen Vergünstigungen bzw. Vorteilen an externe Subjekte (z.B. Erteilung von öffentlichen Aufträgen) (5) | S36: Nein (1) | T36: Ja, die Kontrolle ist sehr wirksam (2) | U36: 16 | V36: 2.7 | W36: Bis ungefähr 20% (1) | X36: Nein (1) | Y36: Nein (0) | Z36: Die Position eines einfachen Mitarbeiters (1) | AA36: 3 | AB36: 0.8 | AC36: 2.16 | AD36: 7 | AF36: Ja | AG36: - Weiteres (in der folgenden Spalte beschreiben) | AH36: interne Kontrolle zwecks Zuweisung an Verantwort-liche/n des Verfahrens | AI36: - von der selben Rechtsquelle, die den Entscheidungsprozess regelt | AJ36: gvD 124/2004 gvD 81/2008 | AK36: Ja | AL36: Ja | AM36: - Gebarungskontrolle | AN36: Mitteilung Ergebnis an Anzeigenden | AO36: - von anderer Rechtsquelle (in der folgenden Spalte beschreiben) | AP36: LG 17/1993 | AQ36: Ja | AR36: Nein | AS36: Nein | AY36: Nein | BE36: Nein | BK36: Nein | BQ36: Nein | BW36: Miteinbeziehung von mindestens einer weiteren Person in das Verfahren | BX36: Kontrolle von Seiten des Vorgesetzten | BY36: Amtsdirektor | BZ36: sofort | CA36: Ja | CB36: Ja | CC36: wirksam
A37: 19.2 Arbeitsinspektorat | B37: - Weiteres (angeben ob weitere riskante Tätigkeiten außer der oben genannten bestehen) | C37: Arbeitsinspektion | D37: Kontrolle Gesetzesverletzungen bezügl. Arbeitsverhältnisse, Sozial- und Unfallversicherung sowie Arbeitssicherheit | E37: I) | F37: Übernahme einer Anzeige, eines amtlichen Inspektionsantrages, eines gerichtlichen Untersuchungsantrages oder für Initiativkontrolle ausgewählte Objekte, Vorfälle, Aufzeichnungen, Unternehmen usw. | G37: Verfassung des Abschlussprotokolles, des Inspektions-, Unfall- oder Prüfberichtesberichtes | H37: D.P.R. 520/1955 Gesetz 628/1961 | I37: gesamtes Verfahren | J37: - Zuständiger Bediensteter | K37: 0 | L37: 1600 | M37: geheimes Einverständnis mit dem betroffenen Unternehmen | N37: Die Verwaltung des Verfahrens wird in der Regel werden von nur einer Person durchgeführt. | O37: Das Verfahren ist teilweise von Gesetzen und Verwaltungsakten (Verordnungen, Richtlinien, Rundschreiben) geregelt (2) | P37: Ja, das Ergebnis des Entscheidungsprozesses ist an Subjekte außerhalb der Landesverwaltung gerichtet (5) | Q37: Nein, der Entscheidungsprozess betrifft ausschließlich die Landesverwaltung (1) | R37: Der Entscheidungsprozess bedingt die Gewährung von erheblichen Vergünstigungen bzw. Vorteilen an externe Subjekte (z.B. Erteilung von öffentlichen Aufträgen) (5) | S37: Nein (1) | T37: Ja, die Kontrolle ist in ungefähr 50% der Fälle wirksam (3) | U37: 17 | V37: 2.8 | W37: Bis ungefähr 80% (4) | X37: Nein (1) | Y37: Nein (0) | Z37: Die Position eines einfachen Mitarbeiters (1) | AA37: 3 | AB37: 0.8 | AC37: 2.24 | AD37: 3 | AF37: Ja | AG37: - Weiteres (in der folgenden Spalte beschreiben) | AH37: kontradiktorisches Verfahren mit Anzeigenden und Angezeigten mit eventuellen Aufsichtsbeschwerden oder gerichtlichen Klagen | AI37: - von der selben Rechtsquelle, die den Entscheidungsprozess regelt | AJ37: D.P.R. 520/1955 Gesetz 628/1961 gvD 124/2004 | AK37: Ja | AL37: Ja | AM37: - Gebarungskontrolle | AN37: Kontrolle und Registrierung durch andere Mitarbeiter | AO37: - von anderer Rechtsquelle (in der folgenden Spalte beschreiben) | AP37: Richtlinie IKS | AQ37: Ja | AR37: Nein | AS37: Nein | AY37: Nein | BE37: Nein | BK37: Nein | BQ37: Nein | BW37: Miteinbeziehung von mindestens einer weiteren Person in das Verfahren | BX37: Kontrolle von Seiten des Vorgesetzten | BY37: Amtsdirektor | BZ37: sofort | CA37: Ja | CB37: Ja | CC37: wirksam
A38: 19.2 Arbeitsinspektorat | B38: - Weiteres (angeben ob weitere riskante Tätigkeiten außer der oben genannten bestehen) | C38: Rekurse Arbeitsinspektion | D38: Annahme bzw. Ablehnung Einwände | E38: I) | F38: Übernahme einer Aufsichtsbeschwerde | G38: Zustellung des positiven, teilweise positiven oder negativen Bescheides an den Beschwerdeführer | H38: gvD 124/2004 Gesetz 689/1981 | I38: gesamtes Verfahren | J38: - Amtsdirektor | K38: 0 | L38: 350 | M38: geheimes Einverständnis mit dem betroffenen Unternehmen | N38: Die Verwaltung des Verfahrens wird in der Regel werden von nur einer Person durchgeführt. | O38: Das Verfahren ist teilweise von Gesetzen und Verwaltungsakten (Verordnungen, Richtlinien, Rundschreiben) geregelt (2) | P38: Ja, das Ergebnis des Entscheidungsprozesses ist an Subjekte außerhalb der Landesverwaltung gerichtet (5) | Q38: Nein, der Entscheidungsprozess betrifft ausschließlich die Landesverwaltung (1) | R38: Der Entscheidungsprozess bedingt die Gewährung von erheblichen Vergünstigungen bzw. Vorteilen an externe Subjekte (z.B. Erteilung von öffentlichen Aufträgen) (5) | S38: Nein (1) | T38: Ja, die Kontrolle ist sehr wirksam (2) | U38: 16 | V38: 2.7 | W38: Bis ungefähr 20% (1) | X38: Nein (1) | Y38: Nein (0) | Z38: Die Position eines Amtsdirektors oder eine gleichgestellte gehobene Position (3) | AA38: 5 | AB38: 1.3 | AC38: 3.51 | AD38: 1 | AF38: Ja | AG38: - Weiteres (in der folgenden Spalte beschreiben) | AH38: kontradiktorisches Verfahren mit Rekurswerber und Mitteilung an verant- wortlichen Beamten u/o ext. Körpersch. | AI38: - von der selben Rechtsquelle, die den Entscheidungsprozess regelt | AJ38: gvD 124/2004 Gesetz 689/1981 | AK38: Ja | AL38: Ja | AM38: - Gebarungskontrolle | AN38: Kontrolle und Registrierung durch andere Mitarbeiter eventuelle Aufsichtsbeschwerde oder gerichtliche Klage | AO38: - von der selben Rechtsquelle, die den Entscheidungsprozess regelt | AP38: gvD 124/2004 Gesetz 689/1981 | AQ38: Ja | AR38: Nein | AS38: Nein | AY38: Nein | BE38: Nein | BK38: Nein | BQ38: Nein | BW38: Miteinbeziehung von mindestens einer weiteren Person in das Verfahren | BX38: Kontrolle von Seiten des Vorgesetzten | BY38: Amtsdirektor | BZ38: sofort | CA38: Ja | CB38: Ja | CC38: wirksam
A39: 19.2 Arbeitsinspektorat | B39: - Weiteres (angeben ob weitere riskante Tätigkeiten außer der oben genannten bestehen) | C39: Bußgeldbemessung | D39: Bemessung zwischen Mindest- und Höchststrafe | E39: I) | F39: Übernahme des Berichtes an den Direktor | G39: Festlegung der konkret zu verhängenden Strafe anhand vorgegebener, nachvollziehbarer Kriterien | H39: Gesetz 689/1981 D.L.H 16/1984 | I39: gesamtes Verfahren | J39: - Amtsdirektor | K39: 0 | L39: 630 | M39: geheimes Einverständnis mit dem betroffenen Unternehmen | N39: Die Verwaltung des Verfahrens wird in der Regel werden von nur einer Person durchgeführt. | O39: Das Verfahren ist teilweise von Gesetzen und Verwaltungsakten (Verordnungen, Richtlinien, Rundschreiben) geregelt (2) | P39: Ja, das Ergebnis des Entscheidungsprozesses ist an Subjekte außerhalb der Landesverwaltung gerichtet (5) | Q39: Nein, der Entscheidungsprozess betrifft ausschließlich die Landesverwaltung (1) | R39: Der Entscheidungsprozess bedingt die Gewährung von erheblichen Vergünstigungen bzw. Vorteilen an externe Subjekte (z.B. Erteilung von öffentlichen Aufträgen) (5) | S39: Nein (1) | T39: Ja, die Kontrolle ist sehr wirksam (2) | U39: 16 | V39: 2.7 | W39: Bis ungefähr 20% (1) | X39: Nein (1) | Y39: Nein (0) | Z39: Die Position eines Amtsdirektors oder eine gleichgestellte gehobene Position (3) | AA39: 5 | AB39: 1.3 | AC39: 3.51 | AD39: 2 | AF39: Ja | AG39: - Weiteres (in der folgenden Spalte beschreiben) | AH39: interne Kontrolle von zwei oder drei Personen | AI39: - von der selben Rechtsquelle, die den Entscheidungsprozess regelt | AJ39: Richtlinie IKS | AK39: Ja | AL39: Ja | AM39: - Gebarungskontrolle | AN39: Aufsichtsbeschwerde u/o gerichtliche Klage | AO39: - von der selben Rechtsquelle, die den Entscheidungsprozess regelt | AP39: gvD 124/2004 Gesetz 689/1981 | AQ39: Ja | AR39: Nein | AS39: Nein | AY39: Nein | BE39: Nein | BK39: Nein | BQ39: Nein | BW39: Miteinbeziehung von mindestens einer weiteren Person in das Verfahren | BX39: Kontrolle von Seiten des Vorgesetzten | BY39: Amtsdirektor | BZ39: sofort | CA39: Ja | CB39: Ja | CC39: wirksam
A40: 19.3 Arbeitsservice | B40: - C) Ermächtigungen oder Konzessionen | D40: Zuerkennung des Arbeitslosenstatus bzw. Eintragung in die Mobilitätsliste und Durchführung der Beratungsgespräche | E40: C) 5 | F40: Antrag um Eintragung in die Arbeitslosenliste einer für die Vermittlung verfügbaren Person | G40: Erfolgte Eintragung | H40: DLH 42/2012 | J40: - Zuständiger Bediensteter | K40: 0 | L40: 31926 | M40: Zuerkennung des Arbeitslosenstatus trotz fehlender Voraussetzungen | N40: Die Voraussetzungen für die Zuerkennung des Arbeitslosenstatus können nur in Anwesenheit der Person ermittelt/überprüft werden. Die Betreuung einer arbeitslosen Person wird immer nur von einer/m Arbeitsvermittler/in pro Einschreibung durchgeführt. | O40: Das Verfahren ist teilweise von Gesetzen und Verwaltungsakten (Verordnungen, Richtlinien, Rundschreiben) geregelt (2) | P40: Ja, das Ergebnis des Entscheidungsprozesses ist an Subjekte außerhalb der Landesverwaltung gerichtet (5) | Q40: Nein, der Entscheidungsprozess betrifft ausschließlich die Landesverwaltung (1) | R40: Der Entscheidungsprozess bedingt zwar die Gewährung von Vergünstigungen bzw. Vorteilen an externe Subjekte, aber diese Vorteile haben keine besondere wirtschaftliche Relevanz (z.B. Gewährung von Studienbeihilfen an Studenten) (3) | S40: Nein (1) | T40: Ja, aber die Kontrolle ist nur vereinzelt wirksam (4) | U40: 16 | V40: 2.7 | W40: Bis ungefähr 40% (2) | X40: Nein (1) | Y40: Nein (0) | Z40: Die Position eines einfachen Mitarbeiters (1) | AA40: 4 | AB40: 1 | AC40: 2.7 | AE40: Lt. gvD 150/2015 Verfahrensänderung mit 01.12.2017: Seit Anfang Dezember ist ANPAL für die Anerkennung des Arbeitslosenstatus zuständig. Der Arbeitsvermittler ist nur mehr für die Bestätigung bzw. für die Ausarbeitung der Leistungsvereinbarung und des Aktionsplanes zuständig | AF40: Ja | AG40: - Weiteres (in der folgenden Spalte beschreiben) | AH40: Abgleich mit den Meldungen von Arbeitsverhältnissen | AI40: - von der selben Rechtsquelle, die den Entscheidungsprozess regelt | AK40: Ja | AL40: Ja | AM40: - Weiteres (in der folgenden Spalte beschreiben) | AN40: Durchführung von periodischen Gesprächen mit der betroffenen Person | AO40: - von der selben Rechtsquelle, die den Entscheidungsprozess regelt | AQ40: Ja | AR40: Ja | AS40: Nein | AY40: Ja | AZ40: - Bewertung der Ergebnisse der Verwaltungsrekurse oder der gerichtlichen Rekurse: geltend gemachte Anfechtungsgründe | BB40: - von der selben Rechtsquelle, die den Entscheidungsprozess regelt | BD40: Ja | BE40: Ja | BF40: - Weiteres (in der folgenden Spalte beschreiben) | BG40: Regelmäßige Durchführungen von Kundenbefragungen, Möglichkeit der anonymen Beschwerde | BK40: Nein | BQ40: Ja | BR40: - Weiteres (in der folgenden Spalte beschreiben) | BS40: Überwachung verschiedener Indikatoren (Gesprächsdauer, Anzahl der Kunden , Performance) | BV40: Ja | BW40: Die Verwaltung der Akte wird aufgeteilt. Das Erstgespräch wird von einem Arbeitsvermittler durchgeführt, die Folgegespräche verwaltet eine andere Person. | BX40: Verminderte Ermessensfreiheit, da bei den Folgegesprächen die zu Beginn registrierte Situation aktualisiert/überprüft wird. | BY40: Arbeitsvermittlungszentren | BZ40: 1 Jahr (31.10.2017) | CA40: Ja | CB40: Ja | CC40: wirksam
A41: 19.3 Arbeitsservice | B41: - C) Ermächtigungen oder Konzessionen | D41: Aberkennung des Arbeitslosenstatus wegen nicht eingehaltener Maßnahme | E41: C) 5 | F41: Nichteinhaltung einer Maßnahme des Arbeitsvermittlungszentrums einer eingeschriebenen Person | G41: Streichung aus der Arbeitslosenliste bzw. Aberkennung des Arbeitslosenstatus | H41: DLH 42/2012 | J41: - Bereichskoordinator | K41: 0 | L41: 4670 | M41: Verzicht auf die Streichung oder Wiedereröffnung des Arbeitslosenstatus trotz fehlender Voraussetzungen in Absprache mit dem betroffenen Kunden | N41: Die Streichungen werden ausschließlich vom Koordinator des jeweiligen Arbeitsvermittlungszentrums durchgeführt. | O41: Das Verfahren ist teilweise von Gesetzen und Verwaltungsakten (Verordnungen, Richtlinien, Rundschreiben) geregelt (2) | P41: Ja, das Ergebnis des Entscheidungsprozesses ist an Subjekte außerhalb der Landesverwaltung gerichtet (5) | Q41: Nein, der Entscheidungsprozess betrifft ausschließlich die Landesverwaltung (1) | R41: Der Entscheidungsprozess bedingt zwar die Gewährung von Vergünstigungen bzw. Vorteilen an externe Subjekte, aber diese Vorteile haben keine besondere wirtschaftliche Relevanz (z.B. Gewährung von Studienbeihilfen an Studenten) (3) | S41: Nein (1) | T41: Ja, aber die Kontrolle ist nur vereinzelt wirksam (4) | U41: 16 | V41: 2.7 | W41: Bis ungefähr 40% (2) | X41: Nein (1) | Y41: Nein (0) | Z41: Die Position eines Koordinators (2) | AA41: 5 | AB41: 1.3 | AC41: 3.51 | AD41: 3 | AF41: Nein | AL41: Nein | AR41: Ja | AS41: Nein | AY41: Ja | AZ41: - Bewertung der Ergebnisse der Verwaltungsrekurse oder der gerichtlichen Rekurse: geltend gemachte Anfechtungsgründe | BB41: - von der selben Rechtsquelle, die den Entscheidungsprozess regelt | BE41: Ja | BF41: - Weiteres (in der folgenden Spalte beschreiben) | BG41: Regelmäßige Durchführungen von Kundenbefragungen, Möglichkeit der anonymen Beschwerde | BK41: Nein | BQ41: Ja | BR41: - Weiteres (in der folgenden Spalte beschreiben) | BS41: Verpflichtung, die Aufhebung der Streichung in der Datenbank zu begründen | BW41: Die Verwaltung der Termine, die zu einer Streichung führen, wird von mehreren Sachbearbeitern durchgeführt. | BX41: Verminderte Ermessensfreiheit, da die Terminverwaltung, die zu einer Streichung führen kann, nicht nur von einer Person verwaltet wird. | BY41: Arbeitsvermittlungszentren | BZ41: sofort | CA41: Ja | CB41: Ja | CC41: wirksam
A42: 19.3 Arbeitsservice | B42: - C) Ermächtigungen oder Konzessionen | D42: Genehmigung der Praktika über die Sommermonate | E42: C) 3 | F42: Antrag eines Betriebs um Genehmigung eines Praktikums | G42: Genehmigung des Praktikums | H42: Rahmenabkommen 2001 | J42: - Zuständiger Bediensteter | K42: 0 | L42: 5500 | M42: Genehmigung des Praktikums, ohne dass die Zugangsvoraussetzungen bestehen | N42: Die Verwaltung und die Dateneingabe erfolgen ausschließlich manuell. | O42: Das Verfahren ist teilweise und nur von Verwaltungsakten (Verordnungen, Richtlinien, Rundschreiben) geregelt (4) | P42: Ja, das Ergebnis des Entscheidungsprozesses ist an Subjekte außerhalb der Landesverwaltung gerichtet (5) | Q42: Nein, der Entscheidungsprozess betrifft ausschließlich die Landesverwaltung (1) | R42: Der Entscheidungsprozess bedingt zwar die Gewährung von Vergünstigungen bzw. Vorteilen an externe Subjekte, aber diese Vorteile haben keine besondere wirtschaftliche Relevanz (z.B. Gewährung von Studienbeihilfen an Studenten) (3) | S42: Nein (1) | T42: Ja, die Kontrolle ist sehr wirksam (2) | U42: 16 | V42: 2.7 | W42: Bis ungefähr 20% (1) | X42: Nein (1) | Y42: Nein (0) | Z42: Die Position eines einfachen Mitarbeiters (1) | AA42: 3 | AB42: 0.8 | AC42: 2.16 | AD42: 4 | AE42: Stand 28.12.2017: Ca. 30 % der Anträge werden manuell verwaltet. Die manuelle Genehmigung wird vom zuständigen Sachbearbeiter vorgenommen, es erfolgt jedoch eine regelmäßige Kontrolle mittels Qlicview-Anwendung | AF42: Ja | AG42: - Weiteres (in der folgenden Spalte beschreiben) | AH42: Automatische Überprüfung in Bezug auf Mindestalter, Höchstdauer, Beschäftigte des Betriebes, vorherige Arbeitsverhältnisse des Praktikanten | AI42: - von der selben Rechtsquelle, die den Entscheidungsprozess regelt | AK42: Ja | AL42: Nein | AR42: Ja | AS42: Nein | AY42: Nein | BE42: Ja | BF42: - Weiteres (in der folgenden Spalte beschreiben) | BG42: Möglichkeit der anonymen Beschwerde | BK42: Nein | BQ42: Nein | BW42: Verwaltung der Praktika über eine Software, wodurch die Daten automatisch in die Datenbank übertragen werden. Laut Programmierung des Systems werden Gesuche automatisch (ohne Einwirken eines Sachbearbeiters) genehmigt oder abgelehnt. Nur gewisse Anträge werden vom zuständigen Sachbearbeiter verwaltet. Auch diese werden durch die Amtsdirektorin genehmigt, wodurch sie eine Kontrollfase durchlaufen (Kontrolle mittels 4-Augenprinzips). | BX42: Verminderte Ermessensfreiheit, da durch die Einführung einer Software lediglich ca. 10% der Anträge manuell verwaltet werden müssen. | BY42: Arbeitsservice | BZ42: 6 Monate (30.04.2017) | CA42: Ja | CB42: Ja | CC42: wirksam
A43: 19.3 Arbeitsservice | B43: - C) Ermächtigungen oder Konzessionen | D43: Genehmigung der Praktika für Personen, die auf dem Arbeitsmarkt benachteiligt sind | E43: C) 5 | F43: Antrag eines Betriebs bzw. einer Körperschaft um Genehmigung eines Praktikums | G43: Genehmigung des Praktikums | H43: Landesgesetz 39/1992 | J43: - Bereichskoordinator | K43: 60000 | L43: 63 | M43: Genehmigung des Praktikums, ohne dass die Zugangsvoraussetzungen bestehen | N43: Die Verwaltung und die Dateneingabe erfolgen ausschließlich manuell. Ebenso fehlen konkrete Kriterien für die Bewertung der Ansuchen und der Beitragsauszahlungen. Die bestehenden Kriterien sind nicht sehr genau definiert. | O43: Das Verfahren ist teilweise und nur von Verwaltungsakten (Verordnungen, Richtlinien, Rundschreiben) geregelt (4) | P43: Ja, das Ergebnis des Entscheidungsprozesses ist an Subjekte außerhalb der Landesverwaltung gerichtet (5) | Q43: Nein, der Entscheidungsprozess betrifft ausschließlich die Landesverwaltung (1) | R43: Der Entscheidungsprozess bedingt zwar die Gewährung von Vergünstigungen bzw. Vorteilen an externe Subjekte, aber diese Vorteile haben keine besondere wirtschaftliche Relevanz (z.B. Gewährung von Studienbeihilfen an Studenten) (3) | S43: Nein (1) | T43: Ja, die Kontrolle stellt ein wirksames Instrument zur Neutralisierung des Risikos dar (1) | U43: 15 | V43: 2.5 | W43: Bis ungefähr 20% (1) | X43: Nein (1) | Y43: Nein (0) | Z43: Die Position eines Koordinators (2) | AA43: 4 | AB43: 1 | AC43: 2.5 | AF43: Ja | AG43: - Weiteres (in der folgenden Spalte beschreiben) | AH43: Vorlage eines Berichts des zuständigen AVZ | AI43: - von der selben Rechtsquelle, die den Entscheidungsprozess regelt | AK43: Ja | AL43: Ja | AM43: - Weiteres (in der folgenden Spalte beschreiben) | AN43: Abschlussbericht des hospitierenden Betriebes über das Praktikum | AO43: - von der selben Rechtsquelle, die den Entscheidungsprozess regelt | AR43: Ja | AS43: Nein | AY43: Ja | AZ43: - Weiteres (in der folgenden Spalte beschreiben) | BA43: Überprüfung, ob der Praktikant nach Abschluss vom Betrieb mit Arbeitsvertrag übernommen wurde | BB43: - von der selben Rechtsquelle, die den Entscheidungsprozess regelt | BD43: Ja | BE43: Ja | BF43: - Weiteres (in der folgenden Spalte beschreiben) | BG43: Möglichkeit der anonymen Beschwerde | BK43: Nein | BQ43: Nein | BW43: Verwaltung der Praktika über eine Software, wodurch die Daten automatisch in die Datenbank übertragen werden. Anpassung bzw. Ergänzung des Kriterienbeschlusses Nr. 949/2013, sodass klare Richtlinien für die Handhabung verschiedener Fälle festgelegt werden. | BX43: Verminderte Ermessensfreiheit durch die Anpassung des Beschlusses der Landesregierung Nr. 949/2013. | BY43: Arbeitsservice | BZ43: 3 Jahre (31.10.2019)
A44: 19.3 Arbeitsservice | B44: - C) Ermächtigungen oder Konzessionen | D44: Einschreibung in die Rangordnung für die gezielte Vermittlung und Durchführung der Beratungsgespräche | E44: C) 3 | F44: Antrag um Eintragung in die Arbeitslosenliste und die Liste der gezielten Vermittung von einer Person mit Behinderung | G44: Erfolgte Eintragung | H44: Gesetz 68/99 | J44: - Zuständiger Bediensteter | K44: 0 | M44: Eintragung der Person in die Rangordnung trotz fehlender Voraussetzungen | N44: Die Voraussetzungen für die Eintragung in die Rangordnung können nur in Anwesenheit der Person ermittelt/überprüft werden. Die Betreuung einer arbeitslosen Person wird immer nur von einer/m Fachkraft für Arbeitsintegration pro Einschreibung durchgeführt. | O44: Keine, es ist vollständig geregelt (1) | P44: Ja, das Ergebnis des Entscheidungsprozesses ist an Subjekte außerhalb der Landesverwaltung gerichtet (5) | Q44: Nein, der Entscheidungsprozess betrifft ausschließlich die Landesverwaltung (1) | R44: Der Entscheidungsprozess bedingt zwar die Gewährung von Vergünstigungen bzw. Vorteilen an externe Subjekte, aber diese Vorteile haben keine besondere wirtschaftliche Relevanz (z.B. Gewährung von Studienbeihilfen an Studenten) (3) | S44: Nein (1) | T44: Ja, aber die Kontrolle ist nur vereinzelt wirksam (4) | U44: 15 | V44: 2.5 | W44: Bis ungefähr 20% (1) | X44: Nein (1) | Y44: Nein (0) | Z44: Die Position eines einfachen Mitarbeiters (1) | AA44: 3 | AB44: 0.8 | AC44: 2 | AD44: 2 | AE44: Lt. gvD 150/2015 Verfahrensänderung mit 01.12.2017: Seit Anfang Dezember ist ANPAL für die Anerkennung des Arbeitslosenstatus zuständig. Der Arbeitsvermittler ist nur mehr für die Bestätigung bzw. für die Ausarbeitung der Leistungsvereinbarung und des Aktionsplanes zuständig | AF44: Ja | AG44: - Weiteres (in der folgenden Spalte beschreiben) | AH44: Einschätzung der Ärztekommission in Bezug auf die Arbeitsfähigkeit | AI44: - von der selben Rechtsquelle, die den Entscheidungsprozess regelt | AK44: Ja | AL44: Nein | AS44: Ja | AT44: - obligatorisch einzuholende Gutachten; | AU44: Einschätzung der Ärztekommission über die Arbeitsfähigkeit | AV44: - von der selben Rechtsquelle, die den Entscheidungsprozess regelt | AX44: Ja | AY44: Nein | BE44: Ja | BF44: - Weiteres (in der folgenden Spalte beschreiben) | BG44: Regelmäßige Durchführungen von Kundenbefragungen, Möglichkeit der anonymen Beschwerde | BK44: Nein | BQ44: Nein | BW44: Die Verwaltung der Akte wird aufgeteilt. Das Erstgespräch wird von einem Arbeitsvermittler durchgeführt, die Folgegespräche verwaltet eine andere Person. | BX44: Verminderte Ermessensfreiheit, da bei den Folgegesprächen die zu Beginn registrierte Situation aktualisiert/überprüft wird. | BY44: Arbeitsvermittlungszentren | BZ44: 1 Jahr (31.10.2017) | CA44: Ja | CB44: Ja | CC44: wirksam
A45: 19.3 Arbeitsservice | B45: - C) Ermächtigungen oder Konzessionen | D45: Genehmigung der Arbeitsaufnahme als Pflichtvermittlung | E45: C) 3 | F45: Antrag eines Betriebes um Zuweisung eines Invaliden | G45: Genehmigung des Antrages | H45: Gesetz 68/99 | J45: - Zuständiger Bediensteter | K45: 0 | L45: 307 | M45: Aufnahme einer bestimmten Person im Rahmen der gezielten Vermittlung, ohne dass die Voraussetzungen bestehen | N45: Die Verwaltung der Anträge erfolgt manuell. | O45: Keine, es ist vollständig geregelt (1) | P45: Ja, das Ergebnis des Entscheidungsprozesses ist an Subjekte außerhalb der Landesverwaltung gerichtet (5) | Q45: Nein, der Entscheidungsprozess betrifft ausschließlich die Landesverwaltung (1) | R45: Der Entscheidungsprozess bedingt zwar die Gewährung von Vergünstigungen bzw. Vorteilen an externe Subjekte, aber diese Vorteile haben keine besondere wirtschaftliche Relevanz (z.B. Gewährung von Studienbeihilfen an Studenten) (3) | S45: Nein (1) | T45: Nein, es ist keine Kontrolle vorgesehen (5) | U45: 16 | V45: 2.7 | W45: Bis ungefähr 20% (1) | X45: Nein (1) | Y45: Nein (0) | Z45: Die Position eines einfachen Mitarbeiters (1) | AA45: 3 | AB45: 0.8 | AC45: 2.16 | AD45: 1 | AF45: Nein | AL45: Nein | AS45: Nein | AY45: Nein | BE45: Ja | BF45: - Weiteres (in der folgenden Spalte beschreiben) | BG45: Unterschrift der Maßnahme durch den Amtsdirektor | BJ45: Ja | BK45: Nein | BQ45: Nein | BW45: Digitale Verwaltung der Anträge, sodass die Daten automatisch in die Datenbank überspielt werden. Der Sachbearbeiter kümmert sich dann nur mehr um die Verwaltung der Mitteilungen der Maßnahmen. Die Bewertung des Antrages wird vomn der Software durchgeführt. | BX45: Verminderte Ermessensfreiheit, da die Dateeingabe und die Beurteilung der Ansuchen automatisch erfolgen. | BY45: Arbeitsservice | BZ45: 3 Jahre (31.10.2019)
A46: 19.3 Arbeitsservice | B46: - C) Ermächtigungen oder Konzessionen | D46: Genehmigung der teilweisen Befreiung oder Aussetzung von der Aufnahmepflicht | E46: C) 5 | F46: Antrag eines Betriebes um die Erteilung der teilweisen Befreigung oder Aussetzung der Pflichtaufnahme | G46: Genehmigung des Antrages | H46: Gesetz 68/99 | J46: - Zuständiger Bediensteter | K46: 0 | L46: 4 | M46: Genehmigung der teilweisen Befreiung ohne, dass die Voraussetzungen dafür bestehen | N46: Der Sachbearbeiter kennt die effektive Situation im Betrieb nicht. | O46: Das Verfahren ist teilweise von Gesetzen und Verwaltungsakten (Verordnungen, Richtlinien, Rundschreiben) geregelt (2) | P46: Nein, das Ergebnis des Entscheidungsprozesses richtet sich ausschließlich an ein internes Amt (2) | Q46: Nein, der Entscheidungsprozess betrifft ausschließlich die Landesverwaltung (1) | R46: Der Entscheidungsprozess hat ausschließlich interne Bedeutung (1) | S46: Nein (1) | T46: Nein, es ist keine Kontrolle vorgesehen (5) | U46: 12 | V46: 2 | W46: Bis ungefähr 20% (1) | X46: Nein (1) | Y46: Nein (0) | Z46: Die Position eines einfachen Mitarbeiters (1) | AA46: 3 | AB46: 0.8 | AC46: 1.6 | AF46: Nein | AL46: Nein | AS46: Nein | AY46: Nein | BE46: Ja | BF46: - Weiteres (in der folgenden Spalte beschreiben) | BG46: Unterschrift der Maßnahme durch den Amtsdirektor | BJ46: Ja | BK46: Nein | BQ46: Nein | BW46: Einholung eines Gutachtens der Fachkraft für Arbeitsintegration, jedes Jahr wird der Fall einer anderen Fachkraft für Arbeitsintegration zugeteilt (Rotation). Kontrolle der Anträge durch die Amtsdirektorin. | BX46: Verminderte Ermessensfreiheit durch das Gutachten. | BY46: Arbeitsvermittlungszentren und Arbeitsservice | BZ46: 6 Monate (30.04.2017) | CA46: Ja | CB46: Ja | CC46: wirksam
A47: 19.3 Arbeitsservice | B47: - Weiteres (angeben ob weitere riskante Tätigkeiten außer der oben genannten bestehen) | C47: Kontrolle der Betriebe, die den Pflichtquoten unterliegen | D47: Entscheidung, ob ein Betrieb zur Aussprache vorgeladen und evtl. an das Arbeitsinspektorat zur Verhängung der entsprechenden Strafen weitergeleitet wird | F47: Interne Feststellung, dass der Betrieb bzgl. Abdeckung der Pflichtquote säumig und unkooperativ ist. | G47: Meldung an das Arbeitsinspektorat | H47: Gesetz 68/99 | J47: - Zuständiger Bediensteter | K47: 0 | M47: Fehlende Überprüfung der Einhaltung der Pflichtquoten durch den Betrieb | N47: Das Risiko besteht wegen der manuellen Abwicklung der Überprüfung der Einhaltung der Pflichtquote, diese hängt sehr stark von der Arbeitsweise der Fachkräfte ab. Es ist ehr schwierig einheitliche Regeln vorzugeben, da jede Situation unterschiedlich ist. | O47: Das Verfahren ist teilweise von Gesetzen und Verwaltungsakten (Verordnungen, Richtlinien, Rundschreiben) geregelt (2) | P47: Ja, das Ergebnis des Entscheidungsprozesses ist an Subjekte außerhalb der Landesverwaltung gerichtet (5) | Q47: Nein, der Entscheidungsprozess betrifft ausschließlich die Landesverwaltung (1) | R47: Der Entscheidungsprozess hat ausschließlich interne Bedeutung (1) | S47: Nein (1) | T47: Ja, aber die Kontrolle ist nur vereinzelt wirksam (4) | U47: 14 | V47: 2.3 | W47: Bis ungefähr 20% (1) | X47: Nein (1) | Y47: Nein (0) | Z47: Die Position eines einfachen Mitarbeiters (1) | AA47: 3 | AB47: 0.8 | AC47: 1.84 | AD47: 1 | AF47: Nein | AL47: Nein | AS47: Nein | AY47: Nein | BE47: Ja | BF47: - Weiteres (in der folgenden Spalte beschreiben) | BG47: Auswahl der Betriebe in Einvernehmen zwischen Fachkraft für Arbeitsintegration, Bezirksleiter/in und Amtsdirektor | BJ47: Ja | BK47: Nein | BQ47: Nein | BW47: Automatische, regelmßige Überprüfung und Vorladung der Betriebe, die die Pflichtquote nicht abgedeckt haben. Alles wird über die Software des Amtes verwaltet. | BX47: Verminderte Ermessensfreiheit. | BY47: Arbeitsvermittlungszentren und Arbeitsservice | BZ47: 3 Jahre (31.10.2019)
A48: 19.3 Arbeitsservice | B48: - D) Gewährung und Auszahlung von Subventionen, Beiträgen, Zuschüssen, Prämien und wirtschaftlichen Vergünstigungen jeglicher Art | D48: Auszahlung von Beiträgen für die Aufnahme von Menschen mit Behinderung | E48: D) 5 | F48: Antrag eines Betriebes um Genehmigung und Auszahlung eines Beitrages für die Anstellung einer Person mit Behinderung | G48: Genehmigung des Antrages und Auszahlung des Beitrages | H48: Landesgesetz 20/83 | I48: D) Phasen 1,2 | J48: - Zuständiger Bediensteter | K48: 2259783 | L48: 518 | M48: Auszahlung eines Beitrags, der nicht die Voraussetzungen erfüllt | N48: Die Eingabe der Gesuche in die Datenbank erfolgt händisch. Ebenso die weitere Verwaltung. Genehmigung der Anträge und der Auszahlung verwaltet eine Person. | O48: Keine, es ist vollständig geregelt (1) | P48: Ja, das Ergebnis des Entscheidungsprozesses ist an Subjekte außerhalb der Landesverwaltung gerichtet (5) | Q48: Nein, der Entscheidungsprozess betrifft ausschließlich die Landesverwaltung (1) | R48: Der Entscheidungsprozess bedingt zwar die Gewährung von Vergünstigungen bzw. Vorteilen an externe Subjekte, aber diese Vorteile haben keine besondere wirtschaftliche Relevanz (z.B. Gewährung von Studienbeihilfen an Studenten) (3) | S48: Nein (1) | T48: Ja, aber die Kontrolle ist nur vereinzelt wirksam (4) | U48: 15 | V48: 2.5 | W48: Bis ungefähr 20% (1) | X48: Nein (1) | Y48: Nein (0) | Z48: Die Position eines einfachen Mitarbeiters (1) | AA48: 3 | AB48: 0.8 | AC48: 2 | AD48: 1 | AF48: Nein | AL48: Ja | AM48: - Gebarungskontrolle | AS48: Ja | AT48: - obligatorisch einzuholende Gutachten; | AU48: Gutachten der zuständigen Fachkraft für Arbeitsintegration in Bezug auf die reduzierte Leistungsfähigkeit | AV48: - von anderer Rechtsquelle (in der folgenden Spalte beschreiben) | AW48: Kriterienbeschluss | AX48: Ja | AY48: Nein | BE48: Ja | BF48: - Weiteres (in der folgenden Spalte beschreiben) | BG48: Unterschrift der Maßnahme durch den Amtsdirektor | BJ48: Ja | BK48: Ja | BL48: - Bereich "Transparente Verwaltung" auf der eigenen institutionellen Homepage? | BM48: Automatische Veröffentlichung der Beiträge | BN48: - von anderer Rechtsquelle (in der folgenden Spalte beschreiben) | BO48: LG 17/93 | BP48: Ja | BQ48: Nein | BW48: Anpassung der bestehenden Datenbank, sodass die Daten direkt vom Antragsteller in das System eingegeben werden. Ebenso ist in dieser Datenbank die Rückverfolgbarkeit der Abänderungen, der Zuweisungen und der Bearbeitungsschritte gegeben. Das System ermittelt automatisch den auszuhalenden Betrag bzw.überprüft automatisch die Voraussetzungen. Die Genehmigung und die Auszahlung wird auf 2 Personen aufgeteilt (Kontrolle mittels 4-Augenprinzips). | BX48: Verminderte Ermessensfreiheit durch die Verwaltung der Anträge mittels angepasster Datenbank. | BY48: Arbeitsservice | BZ48: 3 Jahre (31.10.2019)
A49: 19.3 Arbeitsservice | B49: - D) Gewährung und Auszahlung von Subventionen, Beiträgen, Zuschüssen, Prämien und wirtschaftlichen Vergünstigungen jeglicher Art | D49: Auszahlung der Taschengelder an Personen, die in einem Anvertrauungsabkommen beschäftigt sind | E49: D) 3 | F49: Abgabe der Präsenzliste seitens des Betriebes, wo die Person mit Behinderung untergebracht ist. | G49: Auszahlung des Taschengeldes (Banküberweisung) | H49: Landesgesetz 20/83 | I49: D) Phasen 1,2 | J49: - Zuständiger Bediensteter | K49: 1097196.4 | L49: 300 | M49: Auszahlung des Taschengeldes ohne Berechtigung | N49: Die Verwaltung des Verfahrens und Auszahlung des Tschengeldes werden von einer Person durchgeführt. Ebenso wird die Berechnung manuell mittels Exceltabelle gemacht. | O49: Das Verfahren ist teilweise von Gesetzen und Verwaltungsakten (Verordnungen, Richtlinien, Rundschreiben) geregelt (2) | P49: Ja, das Ergebnis des Entscheidungsprozesses ist an Subjekte außerhalb der Landesverwaltung gerichtet (5) | Q49: Nein, der Entscheidungsprozess betrifft ausschließlich die Landesverwaltung (1) | R49: Der Entscheidungsprozess bedingt zwar die Gewährung von Vergünstigungen bzw. Vorteilen an externe Subjekte, aber diese Vorteile haben keine besondere wirtschaftliche Relevanz (z.B. Gewährung von Studienbeihilfen an Studenten) (3) | S49: Nein (1) | T49: Ja, aber die Kontrolle ist nur vereinzelt wirksam (4) | U49: 16 | V49: 2.7 | W49: Bis ungefähr 20% (1) | X49: Nein (1) | Y49: Nein (0) | Z49: Die Position eines einfachen Mitarbeiters (1) | AA49: 3 | AB49: 0.8 | AC49: 2.16 | AD49: 2 | AE49: Abänderung Vorbeugemaßnahme: Vorbeugung durch Miteinbezieung von mindestens einer weiteren Person, Rotaion der Einteilung der Bezirke Frist für die Umsetzung der Maßnahme: 1 Jahr | AF49: Nein | AL49: Ja | AM49: - Gebarungskontrolle | AS49: Nein | AY49: Nein | BE49: Ja | BF49: - Weiteres (in der folgenden Spalte beschreiben) | BG49: Kontrolle der Kontobewegungen, | BK49: Nein | BQ49: Nein | BW49: Einführung einer Software, die die Berechnung automatisiert. Ebenso wird eine zusätzliche Person für diese Tätigkeit ernannt, sodass die Auszahlungen rotierend verwaltet werden (Kontrolle mittels 4-Augenprinzips). | BX49: Verminderte Ermessensfreiheit durch die Einführung einer software. | BY49: Arbeitsservice | BZ49: 3 Jahre (31.10.2019) | CA49: Ja | CB49: Ja | CC49: wirksam
A50: 19.3 Arbeitsservice | B50: - D) Gewährung und Auszahlung von Subventionen, Beiträgen, Zuschüssen, Prämien und wirtschaftlichen Vergünstigungen jeglicher Art | D50: Genehmigung des außerordentlichen Lohnausgleichs | E50: D) 3 | F50: Antrag um Genehmigung des Lohnausgleichs | G50: Genehmigung des Antrags | H50: Gesetz 92/2012, Gv.D. Nr. 148/2015, lokales Rahmenab-kommen vom 16. März 2016, MD vom 1. August 2014, Nr.83473; | I50: D) Phasen 1,2 | J50: - Zuständiger Bediensteter | K50: 732052.54 | L50: 34 | M50: Genehmigung des Lohnausgleichs, ohne dass die Zugangsvoraussetzungen bestehen. | N50: Die Antragsteller sind im Voraus bekannt, da der Anspruch im Vorfeld einer gewerkschaftlichen Prüfung unterzogen wird. | O50: Das Verfahren ist teilweise von Gesetzen und Verwaltungsakten (Verordnungen, Richtlinien, Rundschreiben) geregelt (2) | P50: Ja, das Ergebnis des Entscheidungsprozesses ist an Subjekte außerhalb der Landesverwaltung gerichtet (5) | Q50: Nein, der Entscheidungsprozess betrifft ausschließlich die Landesverwaltung (1) | R50: Der Entscheidungsprozess bedingt zwar die Gewährung von Vergünstigungen bzw. Vorteilen an externe Subjekte, aber diese Vorteile haben keine besondere wirtschaftliche Relevanz (z.B. Gewährung von Studienbeihilfen an Studenten) (3) | S50: Nein (1) | T50: Ja, die Kontrolle ist sehr wirksam (2) | U50: 14 | V50: 2.3 | W50: Bis ungefähr 20% (1) | X50: Nein (1) | Y50: Nein (0) | Z50: Die Position eines einfachen Mitarbeiters (1) | AA50: 3 | AB50: 0.8 | AC50: 1.84 | AF50: Nein | AL50: Nein | AS50: Nein | AY50: Ja | AZ50: - Bewertung der Ergebnisse der Verwaltungsrekurse oder der gerichtlichen Rekurse: geltend gemachte Anfechtungsgründe | BE50: Ja | BF50: - Weiteres (in der folgenden Spalte beschreiben) | BG50: Unterschrift der Maßnahme durch den Amtsdirektor und den Abteilungsdirektor | BJ50: Ja | BK50: Nein | BQ50: Nein | BW50: Keine Maßnahme vorgesehen, da das Risiko ist jedoch insofern gering, da im Vorfeld eine gemeinsame Überprüfung auf Gewerkschaftsebene stattfinden und bei den geringsten Zweifeln das NISF, der Amtsdirektor bzw. der Abteilungsdirektor informiert werden. | BX50: Keine Ermessensfreiheit.
A51: 19.3 Arbeitsservice | B51: - C) Ermächtigungen oder Konzessionen | D51: Arbeitsgenehmigungen für Nicht-EU-Bürger | E51: C) 3 | F51: Antrag um Erteilung der Arbeitsgenehmigung | G51: Genehmigung des Antrags | H51: Gesetz 286/98 | I51: C) Phasen 1,2 | J51: - Zuständiger Bediensteter | K51: 0 | L51: 480 | M51: Ausstellung der Arbeitsgenehmigung ohne, dass die Zugangsvoraussetzungen erfüllt sind | N51: Fehlende akkurate Kontrolle aller zu Hilfe stehenden Mittel (LAV Programm, Web Programm des Innenministeriums) oder Ignoranz der gegebenen Anweisungen | O51: Keine, es ist vollständig geregelt (1) | P51: Ja, das Ergebnis des Entscheidungsprozesses ist an Subjekte außerhalb der Landesverwaltung gerichtet (5) | Q51: Ja, der Entscheidungsprozess sieht die Beteiligung von mehr als 3 Verwaltungen vor (3) | R51: Der Entscheidungsprozess bedingt zwar die Gewährung von Vergünstigungen bzw. Vorteilen an externe Subjekte, aber diese Vorteile haben keine besondere wirtschaftliche Relevanz (z.B. Gewährung von Studienbeihilfen an Studenten) (3) | S51: Nein (1) | T51: Ja, aber die Kontrolle ist nur vereinzelt wirksam (4) | U51: 17 | V51: 2.8 | W51: Bis ungefähr 20% (1) | X51: Nein (1) | Y51: Nein (0) | Z51: Die Position eines einfachen Mitarbeiters (1) | AA51: 3 | AB51: 0.8 | AC51: 2.24 | AD51: 8 | AE51: Erhöhung der Frist für die Umsetzung auf 3 Jahre, die Ausarbeitung der Chekliste steht noch aus. | AF51: Ja | AG51: - Weiteres (in der folgenden Spalte beschreiben) | AH51: Automatische Vorabkontrollen durch das Programm | AK51: Ja | AL51: Nein | AR51: Ja | AS51: Ja | AT51: - obligatorisch einzuholende Gutachten; | AU51: Gutachten Quästur | AV51: - von der selben Rechtsquelle, die den Entscheidungsprozess regelt | AX51: Ja | AY51: Ja | AZ51: - Bewertung der Ergebnisse der Verwaltungsrekurse oder der gerichtlichen Rekurse: geltend gemachte Anfechtungsgründe | BE51: Ja | BF51: - Weiteres (in der folgenden Spalte beschreiben) | BG51: Unterschrift der Maßnahme durch den Amtsdirektor | BJ51: Ja | BK51: Nein | BQ51: Nein | BW51: Einführung der Kontrolle mittels 4-Augenprinzips, Ausarbeitung einer Checkliste anhand welcher die Kontrolle der Akte durchgeführt wird. | BX51: Verminderte Ermessensfreiheit durch die Einführung einer genauen Kontrolle. | BY51: Arbeitsservice | BZ51: 1 Jahr (31.10.2017)
A52: 19.3 Arbeitsservice | B52: - D) Gewährung und Auszahlung von Subventionen, Beiträgen, Zuschüssen, Prämien und wirtschaftlichen Vergünstigungen jeglicher Art | D52: Genehmigung und Finanzierung von Projekten zum zeitweiligen Einsatz von Arbeitslosen | E52: D) 3 | F52: Antrag einer öffentlichen Köperschaft für die finanzierung eines Projektes und die Auszahlung der Gelder laut LG 11/86. | G52: Genehmigung und Auszahlung des Beitrages | H52: Landesgesetz 11/86 | I52: D) Phasen 1,2 | J52: - Zuständiger Bediensteter | K52: 400958 | L52: 104 | M52: Genehmigung von Projekten, die die Voraussetzungen nicht erfüllen. Das Risiko ist jedoch insofern gering, als die Antragsteller allesamt öffentliche Körperschaften sind | N52: Die Verwaltung der Projekte erfolgt ausschließlich manuell. Ebenso werden die Genehmigung und Auszahlung der Gelder von einer Person verwaltet. | O52: Das Verfahren ist teilweise von Gesetzen und Verwaltungsakten (Verordnungen, Richtlinien, Rundschreiben) geregelt (2) | P52: Ja, das Ergebnis des Entscheidungsprozesses ist an Subjekte außerhalb der Landesverwaltung gerichtet (5) | Q52: Nein, der Entscheidungsprozess betrifft ausschließlich die Landesverwaltung (1) | R52: Der Entscheidungsprozess bedingt zwar die Gewährung von Vergünstigungen bzw. Vorteilen an externe Subjekte, aber diese Vorteile haben keine besondere wirtschaftliche Relevanz (z.B. Gewährung von Studienbeihilfen an Studenten) (3) | S52: Nein (1) | T52: Ja, die Kontrolle stellt ein wirksames Instrument zur Neutralisierung des Risikos dar (1) | U52: 13 | V52: 2.2 | W52: Bis ungefähr 20% (1) | X52: Nein (1) | Y52: Nein (0) | Z52: Die Position eines einfachen Mitarbeiters (1) | AA52: 3 | AB52: 0.8 | AC52: 1.76 | AE52: Abänderung der Vorbeugemaßnahme: Die Einführung der Datenbank ist nicht nötig | AF52: Nein | AL52: Nein | AR52: Nein | AS52: Nein | AY52: Nein | BE52: Ja | BF52: - Weiteres (in der folgenden Spalte beschreiben) | BG52: Gutachten des zuständigen Arbeitsvermittlungszentrums, Unterschrift der Maßnahme durch Amts- und Abteilungsdirektor | BJ52: Ja | BK52: Nein | BQ52: Nein | BW52: Einführung einer Datenbank für die Verwaltung der Projekte. Die Datenbank wird automatisch mit den Daten laut Gesuch gespeißt. Aufteilung der Genehmigung und der Auszahlung der Projekte auf 2 Personen (Kontrolle 4-Augenprinzip). | BX52: Keine Ermessensfreiheit. | BY52: Arbeitsservice | BZ52: 1 Jahr (31.10.2017) | CA52: Ja | CB52: Ja | CC52: wirksam
A53: 19.3 Arbeitsservice | B53: - D) Gewährung und Auszahlung von Subventionen, Beiträgen, Zuschüssen, Prämien und wirtschaftlichen Vergünstigungen jeglicher Art | D53: Verleihung des Preises für Arbeitsintegration 2013 | E53: D) 5 | F53: Antrag | G53: Ernennung des Gewinners | H53: Landesgesetz 20/83 | J53: - Zuständiger Bediensteter | K53: 0 | L53: 0 | M53: Beeinflussung des Bewertungskomitees zu Gunsten eines Mitbewerbers | N53: Die Bewerber sind im Voraus bekannt. | O53: Das Verfahren sieht eine völlige Ermessensfreiheit vor (5) | P53: Ja, das Ergebnis des Entscheidungsprozesses ist an Subjekte außerhalb der Landesverwaltung gerichtet (5) | Q53: Nein, der Entscheidungsprozess betrifft ausschließlich die Landesverwaltung (1) | R53: Der Entscheidungsprozess bedingt zwar die Gewährung von Vergünstigungen bzw. Vorteilen an externe Subjekte, aber diese Vorteile haben keine besondere wirtschaftliche Relevanz (z.B. Gewährung von Studienbeihilfen an Studenten) (3) | S53: Nein (1) | T53: Ja, die Kontrolle stellt ein wirksames Instrument zur Neutralisierung des Risikos dar (1) | U53: 16 | V53: 2.7 | W53: Bis ungefähr 20% (1) | X53: Nein (1) | Y53: Nein (0) | Z53: Die Position eines einfachen Mitarbeiters (1) | AA53: 3 | AB53: 0.8 | AC53: 2.16 | AD53: 3 | AE53: Verfahren inaktiv | AF53: Nein | AL53: Nein | AR53: Ja | AS53: Ja | AT53: - obligatorisch einzuholende Gutachten; | AU53: Stellungnahme des zuständigen Arbeitsvermittlungszentrums | AY53: Nein | BE53: Ja | BF53: - Beauftragung eines Einzel- oder Kollegialorgans mit Inspektions-, Kontroll- und Aufsichtstätigkeiten oder mit korruptionsgefährdetem Entscheidungsprozess (in folgender Spalte hervorheben, ob Einzel- oder Kollegialorgan) | BG53: Einsetzung eines Bewertungskomitees auch mit externen Mitgliedern | BK53: Ja | BL53: - Weiteres (in der folgenden Spalte beschreiben) | BM53: Öffentliche Verleihung des Preises anlässlich des internationalen Tages der Menschen mit Behinderung | BQ53: Nein | BW53: Die Bewerber übermitteln die Bewerbung in verschlossenem Kuvert. Die Kuverts werden erst in der Beurteilungssitzung des Komitees geöffnet. | BX53: Verminderte Ermessensfreiheit. | BY53: Arbeitsservice | BZ53: 1 Jahr (31.10.2017)
A54: 19.3 Arbeitsservice | B54: - C) Ermächtigungen oder Konzessionen | D54: Zertifizierung von Arbeitsverträgen | E54: C) 2 | F54: Antrag | G54: Zertifizierung | H54: gesetzesvertretendes Dekret 276/2003 | J54: - Zuständiger Bediensteter | L54: 0 | M54: Unrechtmäßige Zertifizierung von Verträgen | N54: Die Bewerber sind im Voraus bekannt. | O54: Das Verfahren ist teilweise von Gesetzen und Verwaltungsakten (Verordnungen, Richtlinien, Rundschreiben) geregelt (2) | P54: Ja, das Ergebnis des Entscheidungsprozesses ist an Subjekte außerhalb der Landesverwaltung gerichtet (5) | Q54: Ja, der Entscheidungsprozess sieht die Beteiligung von mehr als 3 Verwaltungen vor (3) | R54: Der Entscheidungsprozess bedingt zwar die Gewährung von Vergünstigungen bzw. Vorteilen an externe Subjekte, aber diese Vorteile haben keine besondere wirtschaftliche Relevanz (z.B. Gewährung von Studienbeihilfen an Studenten) (3) | S54: Nein (1) | T54: Ja, die Kontrolle ist in ungefähr 50% der Fälle wirksam (3) | U54: 17 | V54: 2.8 | W54: Bis ungefähr 20% (1) | X54: Nein (1) | Y54: Nein (0) | Z54: Die Position eines einfachen Mitarbeiters (1) | AA54: 3 | AB54: 0.8 | AC54: 2.24 | AD54: 1 | AF54: Ja | AG54: - Weiteres (in der folgenden Spalte beschreiben) | AH54: Vorabkontrolle der Anträge durch Arbeitsservice und Arbeitsinspektorat | AL54: Nein | AR54: Ja | AS54: Nein | AY54: Nein | BE54: Ja | BF54: - Beauftragung eines Einzel- oder Kollegialorgans mit Inspektions-, Kontroll- und Aufsichtstätigkeiten oder mit korruptionsgefährdetem Entscheidungsprozess (in folgender Spalte hervorheben, ob Einzel- oder Kollegialorgan) | BG54: Zertifizierungskommission mit internen und externen Mitgliedern (INPS+INAIL) | BH54: - von der selben Rechtsquelle, die den Entscheidungsprozess regelt | BK54: Nein | BQ54: Nein | BW54: Keine Maßnahme vorgesehen, da das Risiko insofern gering ist, da schließlich eine Expertenkommission über die Rechtmäßigkeit des zu bescheinigenden Arbeitsvertrages entscheidet | BX54: Keine Ermessensfreiheit.

Sheet Verzeichnisse
A1: Ermessensfreiheit
A2: Keine, es ist vollständig geregelt (1)
A3: Das Verfahren ist teilweise von Gesetzen und Verwaltungsakten (Verordnungen, Richtlinien, Rundschreiben) geregelt (2)
A4: Das Verfahren ist teilweise und nur von Gesetzen geregelt (3)
A5: Das Verfahren ist teilweise und nur von Verwaltungsakten (Verordnungen, Richtlinien, Rundschreiben) geregelt (4)
A6: Das Verfahren sieht eine völlige Ermessensfreiheit vor (5)
A8: Verwaltungsexterne Relevanz
A9: Nein, das Ergebnis des Entscheidungsprozesses richtet sich ausschließlich an ein internes Amt (2)
A10: Ja, das Ergebnis des Entscheidungsprozesses ist an Subjekte außerhalb der Landesverwaltung gerichtet (5)
A12: Komplexität des Entscheidungsprozesses
A13: Nein, der Entscheidungsprozess betrifft ausschließlich die Landesverwaltung (1)
A14: Ja, der Entscheidungsprozess sieht die Beteiligung von mehr als 3 Verwaltungen vor (3)
A15: Ja, der Entscheidungsprozess sieht die Beteiligung von mehr als 5 Verwaltungen vor (5)
A17: Wirtschaftliche Bedeutung
A18: Der Entscheidungsprozess hat ausschließlich interne Bedeutung (1)
A19: Der Entscheidungsprozess bedingt zwar die Gewährung von Vergünstigungen bzw. Vorteilen an externe Subjekte, aber diese Vorteile haben keine besondere wirtschaftliche Relevanz (z.B. Gewährung von Studienbeihilfen an Studenten) (3)
A20: Der Entscheidungsprozess bedingt die Gewährung von erheblichen Vergünstigungen bzw. Vorteilen an externe Subjekte (z.B. Erteilung von öffentlichen Aufträgen) (5)
A22: Teilbarkeit des Entscheidungsprozesses
A23: Nein (1)
A24: Ja (5)
A26: Kontrollen
A27: Ja, die Kontrolle stellt ein wirksames Instrument zur Neutralisierung des Risikos dar (1)
A28: Ja, die Kontrolle ist sehr wirksam (2)
A29: Ja, die Kontrolle ist in ungefähr 50% der Fälle wirksam (3)
A30: Ja, aber die Kontrolle ist nur vereinzelt wirksam (4)
A31: Nein, das Korruptionsrisiko bleibt bestehen (5)
A32: Nein, es ist keine Kontrolle vorgesehen (5)
A34: Organisatorische Auswirkungen
A35: Bis ungefähr 20% (1)
A36: Bis ungefähr 40% (2)
A37: Bis ungefähr 60% (3)
A38: Bis ungefähr 80% (4)
A39: Bis ungefähr 100% (5)
A41: Wirtschaftliche Auswirkungen
A42: Nein (1)
A43: Ja (5)
A45: Rufschädigende Auswirkungen
A46: Nein (0)
A47: Wir haben diesbezüglich keine Kenntnis (1)
A48: Ja, in lokalen Zeitungen oder Zeitschriften (2)
A49: Ja, in nationalen Zeitungen oder Zeitschriften (3)
A50: Ja, in lokalen und nationalen Zeitungen oder Zeitschriften (4)
A51: Sì, Ja, in lokalen, nationalen und internationalen Zeitungen oder Zeitschriften (5)
A53: Organisatorische, wirtschaftliche und rufschädigende Auswirkungen
A54: Die Position eines einfachen Mitarbeiters (1)
A55: Die Position eines Koordinators (2)
A56: Die Position eines Amtsdirektors oder eine gleichgestellte gehobene Position (3)
A57: Die Position eines Abteilungsdirektors (4)
A58: Die Position eines Ressort- oder Generaldirektors (5)
A60: Vorbeugungsmaßnahmen
A61: Ja
A62: Nein
A63: Nein, aber in Ausarbeitung (in der eigenen Spalte beschreiben, falls nicht ausdrücklich als Beispiel angegeben)
A65: Verstärkte Verfahren
A66: - obligatorisch einzuholende Gutachten;
A67: - Pflicht, die eventuelle Abweichung von allgemeinen Richtlinien ausdrücklich zu begründen und mitzuteilen, sofern die Ausübung der Ermessensfreiheit von internen Rundschreiben oder Richtlinien geregelt ist
A68: - Weiteres (in der folgenden Spalte beschreiben)
A70: Kontrollen ex ante
A71: - Kontrolle gemäß Art. 5, Abs.2, LG 17/1993
A72: - Weiteres (in der folgenden Spalte beschreiben)
A74: Kontrollen ex post
A75: - Stichprobenkontrolle
A76: - Gebarungskontrolle
A77: - Weiteres (in der folgenden Spalte beschreiben)
A79: Besondere Bewertungen der erreichten Ergebnisse
A80: - Bewertung der Ergebnisse der Verwaltungsrekurse oder der gerichtlichen Rekurse: geltend gemachte Anfechtungsgründe
A81: - Weiteres (in der folgenden Spalte beschreiben)
A83: Besondere Maßnahmen in der Organisation der Ämter und / oder in der Verwaltung des zugeteilten Personals
A84: -Vorgaben für die Rotation des Personals und evt. Modalitäten der Rotation (nach einem Zufallskriterium oder einem anderen Kriterium?)
A85: - Beauftragung eines Einzel- oder Kollegialorgans mit Inspektions-, Kontroll- und Aufsichtstätigkeiten oder mit korruptionsgefährdetem Entscheidungsprozess (in folgender Spalte hervorheben, ob Einzel- oder Kollegialorgan)
A86: - Weiteres (in der folgenden Spalte beschreiben)
A88: Besondere Transparenzmaßnahmen betreffend bereits durchgeführte Tätigkeiten, sei es im Sinne der Transparenz des Entscheidungsprozesses, sei es im Sinne der Veröffentlichung (angeben wo)
A89: - kann bei Verwaltungsmaßnahmen, die von einem Kollegialorgan erlassen werden, eine eventuell bestehende Minderheitenmeinung einzelner Mitglieder angegeben werden?
A90: - Bürgernetz?
A91: - Bereich "Transparente Verwaltung" auf der eigenen institutionellen Homepage?
A92: - Weiteres (in der folgenden Spalte beschreiben)
A94: Andere Art von Gegenmaßnahme
A95: - Überwachung der Einhaltung der Verfahrensfristen
A96: - Überwachung der durchschnittlichen Verfahrensdauer
A97: - Weiteres (in der folgenden Spalte beschreiben)
A99: Rechtsquelle
A100: - von der selben Rechtsquelle, die den Entscheidungsprozess regelt
A101: - von anderer Rechtsquelle (in der folgenden Spalte beschreiben)
A103: Verwaltungspraxis
A104: Ja
A105: Nein
A107: JaNein
A108: Ja
A109: Nein
A111: Risikobereiche gemäß Art. 1, Abs. 16, G.190/2012:
A112: - A) Personalaufnahme und Karriereentwicklung
A113: - B) Vergabe von öffentlichen Arbeiten, Lieferungen und Dienstleistungen (also z.B. sämtliche Formen der Erteilung von Aufträgen)
A114: - C) Ermächtigungen oder Konzessionen
A115: - D) Gewährung und Auszahlung von Subventionen, Beiträgen, Zuschüssen, Prämien und wirtschaftlichen Vergünstigungen jeglicher Art
A116: - E) Landesplanung und Ortsplanung
A117: - F) Landschaftsplanung
A118: - G) Umweltverträglichkeitsprüfung und Sammelgenehmigungsverfahren
A119: - H) Verwaltung der Einnahmen, der Ausgaben und des Vermögens
A120: - I) Kontrollen, Überprüfungen, Inspektionen und Sanktionen
A121: - J) Aufträge und Ernennungen
A122: - K) Rechtsangelegenheiten und Streitsachen
A123: - L) Programmierung und Verwaltung der EU-Fonds
A124: - Weiteres (angeben ob weitere riskante Tätigkeiten außer der oben genannten bestehen)
A126: ResponsabileP
A127: - des gesamten Arbeitsprozesses
A128: - der einzelnen Phase
A130: TipoResponsabile
A131: - Abteilungsdirektor
A132: - Bereichskoordinator
A133: - Amtsdirektor
A134: - Zuständiger Bediensteter
A136: TermineAttuazione
A137: sofort
A138: 6 Monate (30.04.2017)
A139: 1 Jahr (31.10.2017)
A140: 3 Jahre (31.10.2019)
A142: ValutazioneAttuazione
A143: wirksam
A144: neutral
A145: unwirksam
